﻿Body Name,Supp ID,,Supplier Name,Service Area Category,Supp Grp,Period,Invoice Date,TT,Unique Invoice Reference,,Inv Amount,Account,Expenditure Description,Cost C,Cost Centre Name,Posted Amount
Nottinghamshire Fire and Rescue Service,101001,Express Recruitment Ltd,Express Recruitment Ltd,Management & Support Services,1,202412,28/02/2024,P6,9110458,-832.47 ,832.47 ,1005,Admin Agency Staff,2075,Service Support Hub,693.72 
Nottinghamshire Fire and Rescue Service,103696,Rebel Recruitment Limited,Rebel Recruitment Limited,Management & Support Services,5,202412,16/02/2024,P6,9110477,-960.00 ,960.00 ,1005,Admin Agency Staff,2097,ICT Service Operations,800.00 
Nottinghamshire Fire and Rescue Service,103696,Rebel Recruitment Limited,Rebel Recruitment Limited,Management & Support Services,5,202412,11/01/2024,P6,9110518,-384.00 ,384.00 ,1005,Admin Agency Staff,2097,ICT Service Operations,320.00 
Nottinghamshire Fire and Rescue Service,103696,Rebel Recruitment Limited,Rebel Recruitment Limited,Management & Support Services,5,202412,16/02/2024,P6,9110519,-960.00 ,960.00 ,1005,Admin Agency Staff,2097,ICT Service Operations,800.00 
Nottinghamshire Fire and Rescue Service,103696,Rebel Recruitment Limited,Rebel Recruitment Limited,Management & Support Services,5,202412,19/02/2024,P6,9110520,-960.00 ,960.00 ,1005,Admin Agency Staff,2097,ICT Service Operations,800.00 
Nottinghamshire Fire and Rescue Service,103696,Rebel Recruitment Limited,Rebel Recruitment Limited,Management & Support Services,5,202412,28/02/2024,P6,9110521,-768.00 ,768.00 ,1005,Admin Agency Staff,2097,ICT Service Operations,640.00 
Nottinghamshire Fire and Rescue Service,103958,Lithium3 Technology Recruitment Limited,Lithium3 Technology Recruitment Limited,Management & Support Services,5,202412,29/02/2024,P6,9110637,"-5,151.48 ","5,151.48 ",1005,Admin Agency Staff,2097,ICT Service Operations,"3,990.00 "
Nottinghamshire Fire and Rescue Service,101001,Express Recruitment Ltd,Express Recruitment Ltd,Management & Support Services,1,202412,06/03/2024,P6,9110644,-665.11 ,665.11 ,1005,Admin Agency Staff,2075,Service Support Hub,554.26 
Nottinghamshire Fire and Rescue Service,101001,Express Recruitment Ltd,Express Recruitment Ltd,Management & Support Services,1,202412,13/03/2024,P6,9110645,-832.47 ,832.47 ,1005,Admin Agency Staff,2075,Service Support Hub,693.73 
Nottinghamshire Fire and Rescue Service,104089,Venn Group,Venn Group,Management & Support Services,5,202412,06/03/2024,P6,9110658,-981.18 ,981.18 ,1005,Admin Agency Staff,2082,Payroll,817.65 
Nottinghamshire Fire and Rescue Service,104089,Venn Group,Venn Group,Management & Support Services,5,202412,28/02/2024,P6,9110705,-981.18 ,981.18 ,1005,Admin Agency Staff,2082,Payroll,817.65 
Nottinghamshire Fire and Rescue Service,104089,Venn Group,Venn Group,Management & Support Services,5,202412,13/03/2024,P6,9110713,-981.18 ,981.18 ,1005,Admin Agency Staff,2082,Payroll,817.65 
Nottinghamshire Fire and Rescue Service,101001,Express Recruitment Ltd,Express Recruitment Ltd,Management & Support Services,1,202412,20/03/2024,P6,9110723,-843.62 ,843.62 ,1005,Admin Agency Staff,2075,Service Support Hub,703.02 
Nottinghamshire Fire and Rescue Service,101001,Express Recruitment Ltd,Express Recruitment Ltd,Management & Support Services,1,202412,26/03/2024,P6,9110828,-854.78 ,854.78 ,1005,Admin Agency Staff,2075,Service Support Hub,712.32 
Nottinghamshire Fire and Rescue Service,103371,Nottinghamshire Healthcare NHS Trust,Nottinghamshire Healthcare NHS Trust,Management & Support Services,5,202412,21/03/2024,P6,9110912,"-2,937.92 ","2,937.92 ",1005,Admin Agency Staff,2068,Prevention,"2,937.92 "
Nottinghamshire Fire and Rescue Service,103958,Lithium3 Technology Recruitment Limited,Lithium3 Technology Recruitment Limited,Management & Support Services,5,202412,31/03/2024,P6,9110975,"-4,308.74 ","4,308.74 ",1005,Admin Agency Staff,2097,ICT Service Operations,"3,590.63 "
Nottinghamshire Fire and Rescue Service,101001,Express Recruitment Ltd,Express Recruitment Ltd,Management & Support Services,1,202412,03/04/2024,P6,9110986,-665.11 ,665.11 ,1005,Admin Agency Staff,2075,Service Support Hub,554.26 
Nottinghamshire Fire and Rescue Service,103696,Rebel Recruitment Limited,Rebel Recruitment Limited,Management & Support Services,5,202412,25/03/2024,P6,9111018,-960.00 ,960.00 ,1005,Admin Agency Staff,2097,ICT Service Operations,800.00 
Nottinghamshire Fire and Rescue Service,103696,Rebel Recruitment Limited,Rebel Recruitment Limited,Management & Support Services,5,202412,25/03/2024,P6,9111021,-960.00 ,960.00 ,1005,Admin Agency Staff,2097,ICT Service Operations,800.00 
Nottinghamshire Fire and Rescue Service,103696,Rebel Recruitment Limited,Rebel Recruitment Limited,Management & Support Services,5,202412,25/03/2024,P6,9111022,-768.00 ,768.00 ,1005,Admin Agency Staff,2097,ICT Service Operations,640.00 
Nottinghamshire Fire and Rescue Service,103696,Rebel Recruitment Limited,Rebel Recruitment Limited,Management & Support Services,5,202412,25/03/2024,P6,9111023,-960.00 ,960.00 ,1005,Admin Agency Staff,2097,ICT Service Operations,800.00 
Nottinghamshire Fire and Rescue Service,103176,South Yorkshire Fire & Rescue Authority,South Yorkshire Fire & Rescue Authority,Management & Support Services,1,202412,19/03/2024,P6,9110702,"-29,980.58 ","29,980.58 ",1201,Operational Pay,2050,Corporate Support,51.90 
Nottinghamshire Fire and Rescue Service,103176,South Yorkshire Fire & Rescue Authority,South Yorkshire Fire & Rescue Authority,Management & Support Services,1,202412,19/03/2024,P6,9110702,"-29,980.58 ","29,980.58 ",1201,Operational Pay,2050,Corporate Support,226.20 
Nottinghamshire Fire and Rescue Service,103176,South Yorkshire Fire & Rescue Authority,South Yorkshire Fire & Rescue Authority,Management & Support Services,1,202412,19/03/2024,P6,9110702,"-29,980.58 ","29,980.58 ",1201,Operational Pay,2050,Corporate Support,"2,882.34 "
Nottinghamshire Fire and Rescue Service,103176,South Yorkshire Fire & Rescue Authority,South Yorkshire Fire & Rescue Authority,Management & Support Services,1,202412,19/03/2024,P6,9110702,"-29,980.58 ","29,980.58 ",1201,Operational Pay,2050,Corporate Support,"18,895.08 "
Nottinghamshire Fire and Rescue Service,103176,South Yorkshire Fire & Rescue Authority,South Yorkshire Fire & Rescue Authority,Management & Support Services,1,202412,19/03/2024,P6,9110702,"-29,980.58 ","29,980.58 ",1208,Operational NI,2050,Corporate Support,"2,753.88 "
Nottinghamshire Fire and Rescue Service,103176,South Yorkshire Fire & Rescue Authority,South Yorkshire Fire & Rescue Authority,Management & Support Services,1,202412,19/03/2024,P6,9110702,"-29,980.58 ","29,980.58 ",1209,Operational Superannuation,2050,Corporate Support,"5,060.91 "
Nottinghamshire Fire and Rescue Service,103650,Carsington Sports & Leisure Limited,Carsington Sports & Leisure Limited,Operational Responses,5,202412,02/03/2024,P6,9110452,"-2,500.08 ","2,500.08 ",1801,Training,2074,Operational Training,"2,083.40 "
Nottinghamshire Fire and Rescue Service,104337,Nottingham Off Road Events LTD,Nottingham Off Road Events LTD,Operational Responses,5,202412,15/02/2024,P6,9110453,"-1,788.00 ","1,788.00 ",1801,Training,2074,Operational Training,"1,490.00 "
Nottinghamshire Fire and Rescue Service,100339,Serco Limited,Serco Limited,Management & Support Services,1,202412,27/02/2024,P6,9110481,"-1,052.40 ","1,052.40 ",1801,Training,2073,Assurance and Risk,877.00 
Nottinghamshire Fire and Rescue Service,102933,Lincolnshire Fire and Rescue Service,Lincolnshire Fire and Rescue Service,Operational Responses,4,202412,06/03/2024,P6,9110535,"-14,400.00 ","14,400.00 ",1801,Training,2074,Operational Training,"12,000.00 "
Nottinghamshire Fire and Rescue Service,103094,Draeger Safety UK Limited,Draeger Safety UK Limited,Management & Support Services,5,202412,06/03/2024,P6,9110539,"-3,934.14 ","3,934.14 ",1801,Training,2084,Engineering,"3,278.45 "
Nottinghamshire Fire and Rescue Service,102933,Lincolnshire Fire and Rescue Service,Lincolnshire Fire and Rescue Service,Operational Responses,4,202412,06/03/2024,P6,9110542,"-41,400.00 ","41,400.00 ",1801,Training,2074,Operational Training,"34,500.00 "
Nottinghamshire Fire and Rescue Service,104017,K Lamb Associates Limited,K Lamb Associates Limited,Management & Support Services,5,202412,28/02/2024,P6,9110592,"-4,200.00 ","4,200.00 ",1801,Training,2059,Corporate Training,"3,500.00 "
Nottinghamshire Fire and Rescue Service,100778,Fire Service College Ltd,Fire Service College Ltd,Management & Support Services,4,202412,12/03/2024,P6,9110647,"-3,594.00 ","3,594.00 ",1801,Training,2059,Corporate Training,"2,995.00 "
Nottinghamshire Fire and Rescue Service,104017,K Lamb Associates Limited,K Lamb Associates Limited,Management & Support Services,5,202412,05/03/2024,P6,9110672,"-4,200.00 ","4,200.00 ",1801,Training,2059,Corporate Training,"3,500.00 "
Nottinghamshire Fire and Rescue Service,101034,University Of Central Lancashire,University Of Central Lancashire,"Statutory Inspection, Certification & Enforcement",1,202412,30/01/2024,P6,9110680,"-6,930.00 ","6,930.00 ",1801,Training,2021,Fire Protection,"6,930.00 "
Nottinghamshire Fire and Rescue Service,101034,University Of Central Lancashire,University Of Central Lancashire,"Statutory Inspection, Certification & Enforcement",1,202412,30/01/2024,P6,9110681,"-6,930.00 ","6,930.00 ",1801,Training,2021,Fire Protection,"6,930.00 "
Nottinghamshire Fire and Rescue Service,101034,University Of Central Lancashire,University Of Central Lancashire,"Statutory Inspection, Certification & Enforcement",1,202412,30/01/2024,P6,9110682,"-6,930.00 ","6,930.00 ",1801,Training,2021,Fire Protection,"6,930.00 "
Nottinghamshire Fire and Rescue Service,104061,Everbright Lodge Limited T/A The Wild Pheasant Hotel and Spa,Everbright Lodge Limited T/A The Wild Pheasant Hotel and Spa,Management & Support Services,5,202412,19/03/2024,P6,9110690,"-1,546.35 ","1,546.35 ",1801,Training,2059,Corporate Training,"1,288.63 "
Nottinghamshire Fire and Rescue Service,104017,K Lamb Associates Limited,K Lamb Associates Limited,Operational Responses,5,202412,18/03/2024,P6,9110691,"-2,040.00 ","2,040.00 ",1801,Training,2074,Operational Training,"1,700.00 "
Nottinghamshire Fire and Rescue Service,100019,Nuffield Sailing Centre,Nuffield Sailing Centre,Management & Support Services,1,202412,16/03/2024,P6,9110692,-880.00 ,880.00 ,1801,Training,2059,Corporate Training,40.00 
Nottinghamshire Fire and Rescue Service,102215,Performance Monitoring Systems Ltd,Performance Monitoring Systems Ltd,Operational Responses,1,202412,19/03/2024,P6,9110720,"-5,400.00 ","5,400.00 ",1801,Training,2074,Operational Training,"4,500.00 "
Nottinghamshire Fire and Rescue Service,102697,Canal & River Trust,Canal & River Trust,Management & Support Services,1,202412,20/03/2024,P6,9110736,-258.15 ,258.15 ,1801,Training,2059,Corporate Training,258.15 
Nottinghamshire Fire and Rescue Service,104168,ioda Limited,ioda Limited,Management & Support Services,5,202412,22/03/2024,P6,9110741,"-1,590.00 ","1,590.00 ",1801,Training,2054,Equalities Team,"1,325.00 "
Nottinghamshire Fire and Rescue Service,104331,CITI VIRTUAL LEARNING LIMITED,CITI VIRTUAL LEARNING LIMITED,Management & Support Services,5,202412,15/03/2024,P6,9110747,-354.00 ,354.00 ,1801,Training,2068,Prevention,295.00 
Nottinghamshire Fire and Rescue Service,102124,East Midlands Councils,East Midlands Councils,Management & Support Services,1,202412,06/03/2024,P6,9110751,"-2,574.00 ","2,574.00 ",1801,Training,2054,Equalities Team,"2,145.00 "
Nottinghamshire Fire and Rescue Service,101335,Nottingham Trent University,Nottingham Trent University,Management & Support Services,1,202412,25/03/2024,P6,9110755,"-1,800.00 ","1,800.00 ",1801,Training,2059,Corporate Training,"1,500.00 "
Nottinghamshire Fire and Rescue Service,101335,Nottingham Trent University,Nottingham Trent University,Management & Support Services,1,202412,25/03/2024,P6,9110756,"-3,600.00 ","3,600.00 ",1801,Training,2059,Corporate Training,"3,000.00 "
Nottinghamshire Fire and Rescue Service,104134,Xact Consultancy & Training Limited,Xact Consultancy & Training Limited,"Statutory Inspection, Certification & Enforcement",5,202412,11/03/2024,P6,9110790,"-1,692.00 ","1,692.00 ",1801,Training,2021,Fire Protection,"1,410.00 "
Nottinghamshire Fire and Rescue Service,104189,TNR Coaching Limited,TNR Coaching Limited,Management & Support Services,5,202412,20/03/2024,P6,9110827,-405.60 ,405.60 ,1801,Training,2059,Corporate Training,65.00 
Nottinghamshire Fire and Rescue Service,104189,TNR Coaching Limited,TNR Coaching Limited,Management & Support Services,5,202412,20/03/2024,P6,9110827,-405.60 ,405.60 ,1801,Training,2059,Corporate Training,273.00 
Nottinghamshire Fire and Rescue Service,104298,Steve McGuirk Management Solutions,Steve McGuirk Management Solutions,Operational Responses,5,202412,31/03/2024,P6,9110904,"-2,500.00 ","2,500.00 ",1801,Training,2013,Service Delivery,"2,500.00 "
Nottinghamshire Fire and Rescue Service,103616,South Yorkshire MCA-Police,South Yorkshire MCA-Police,Prevention and Education ,5,202412,12/03/2024,P6,9111013,"-1,125.00 ","1,125.00 ",1801,Training,2026,Fire Investigation,"1,125.00 "
Nottinghamshire Fire and Rescue Service,100019,Nuffield Sailing Centre,Nuffield Sailing Centre,Management & Support Services,1,202412,31/03/2024,P6,9111054,-880.00 ,880.00 ,1801,Training,2059,Corporate Training,40.00 
Nottinghamshire Fire and Rescue Service,100779,Local Government Association,Local Government Association,Management & Support Services,1,202412,19/02/2024,P6,9110734,"2,370.00 ","-2,370.00 ",1801,Training,2093,Command Suite,"-1,975.00 "
Nottinghamshire Fire and Rescue Service,100779,Local Government Association,Local Government Association,Management & Support Services,1,202412,19/02/2024,P6,9110735,474.00 ,-474.00 ,1801,Training,2093,Command Suite,-395.00 
Nottinghamshire Fire and Rescue Service,100779,Local Government Association,Local Government Association,Management & Support Services,1,202412,11/01/2024,P6,9110848,"2,844.00 ","-2,844.00 ",1801,Training,2093,Command Suite,"-2,370.00 "
Nottinghamshire Fire and Rescue Service,100779,Local Government Association,Local Government Association,Management & Support Services,1,202412,28/03/2024,P6,9111016,-430.72 ,430.72 ,1810,FRA Pension Fund Administration Cost,1089,Pension Costs met from Revenue,358.93 
Nottinghamshire Fire and Rescue Service,101000,C F S Messing Account Stockhill,C F S Messing Account Stockhill,Operational Responses,8,202412,31/01/2024,P6,9110739,-297.50 ,297.50 ,1814,Spoilt Meal Reimbursement,1020,Stockhill,213.00 
Nottinghamshire Fire and Rescue Service,101000,C F S Messing Account Stockhill,C F S Messing Account Stockhill,Operational Responses,8,202412,31/12/2023,P6,9110740,-355.00 ,355.00 ,1814,Spoilt Meal Reimbursement,1020,Stockhill,264.00 
Nottinghamshire Fire and Rescue Service,103866,Richardson Associates (UK) Limited,Richardson Associates (UK) Limited,Management & Support Services,5,202412,07/02/2024,P6,9110441,"-2,106.00 ","2,106.00 ",1850,Recruitment Advertising,2058,HR Support,"1,755.00 "
Nottinghamshire Fire and Rescue Service,100557,NCC Sundry Debtors,NCC Sundry Debtors,Management & Support Services,4,202412,05/02/2024,P6,9110584,-540.00 ,540.00 ,1850,Recruitment Advertising,2049,Professional Support,450.00 
Nottinghamshire Fire and Rescue Service,103377,Flat Fee Recruiter Limited,Flat Fee Recruiter Limited,Management & Support Services,5,202412,18/03/2024,P6,9110710,-322.80 ,322.80 ,1850,Recruitment Advertising,2049,Professional Support,269.00 
Nottinghamshire Fire and Rescue Service,103377,Flat Fee Recruiter Limited,Flat Fee Recruiter Limited,Management & Support Services,5,202412,26/03/2024,P6,9110835,-322.80 ,322.80 ,1850,Recruitment Advertising,2049,Professional Support,269.00 
Nottinghamshire Fire and Rescue Service,103923,Bupa UK Insurance Services,Bupa UK Insurance Services,Management & Support Services,5,202412,28/02/2024,P6,9110488,"-3,386.06 ","3,386.06 ",1860,Employee Benefits Schemes,2049,Professional Support,"3,386.06 "
Nottinghamshire Fire and Rescue Service,103176,South Yorkshire Fire & Rescue Authority,South Yorkshire Fire & Rescue Authority,Management & Support Services,1,202412,19/03/2024,P6,9110702,"-29,980.58 ","29,980.58 ",1880,Apprenticeship Levy,2065,Pan Organisation,110.27 
Nottinghamshire Fire and Rescue Service,102280,Amptron Electrical Services,Amptron Electrical Services,Operational Responses,1,202412,04/03/2024,P6,9110493,"-33,829.75 ","33,829.75 ",2000,Buildings Repairs and Maintenance - Reactive,1001,Mansfield,"3,358.39 "
Nottinghamshire Fire and Rescue Service,102280,Amptron Electrical Services,Amptron Electrical Services,Operational Responses,1,202412,04/03/2024,P6,9110493,"-33,829.75 ","33,829.75 ",2000,Buildings Repairs and Maintenance - Reactive,1002,Blidworth,422.06 
Nottinghamshire Fire and Rescue Service,102280,Amptron Electrical Services,Amptron Electrical Services,Operational Responses,1,202412,04/03/2024,P6,9110493,"-33,829.75 ","33,829.75 ",2000,Buildings Repairs and Maintenance - Reactive,1003,London Road,"2,984.20 "
Nottinghamshire Fire and Rescue Service,102280,Amptron Electrical Services,Amptron Electrical Services,Operational Responses,1,202412,04/03/2024,P6,9110493,"-33,829.75 ","33,829.75 ",2000,Buildings Repairs and Maintenance - Reactive,1005,Ashfield,"1,369.95 "
Nottinghamshire Fire and Rescue Service,102280,Amptron Electrical Services,Amptron Electrical Services,Operational Responses,1,202412,04/03/2024,P6,9110493,"-33,829.75 ","33,829.75 ",2000,Buildings Repairs and Maintenance - Reactive,1006,Edwinstowe,908.75 
Nottinghamshire Fire and Rescue Service,102280,Amptron Electrical Services,Amptron Electrical Services,Operational Responses,1,202412,04/03/2024,P6,9110493,"-33,829.75 ","33,829.75 ",2000,Buildings Repairs and Maintenance - Reactive,1007,Warsop,455.49 
Nottinghamshire Fire and Rescue Service,102280,Amptron Electrical Services,Amptron Electrical Services,Operational Responses,1,202412,04/03/2024,P6,9110493,"-33,829.75 ","33,829.75 ",2000,Buildings Repairs and Maintenance - Reactive,1008,Worksop,688.48 
Nottinghamshire Fire and Rescue Service,102280,Amptron Electrical Services,Amptron Electrical Services,Operational Responses,1,202412,04/03/2024,P6,9110493,"-33,829.75 ","33,829.75 ",2000,Buildings Repairs and Maintenance - Reactive,1010,Harworth,249.07 
Nottinghamshire Fire and Rescue Service,102280,Amptron Electrical Services,Amptron Electrical Services,Operational Responses,1,202412,04/03/2024,P6,9110493,"-33,829.75 ","33,829.75 ",2000,Buildings Repairs and Maintenance - Reactive,1011,Misterton,167.40 
Nottinghamshire Fire and Rescue Service,102280,Amptron Electrical Services,Amptron Electrical Services,Operational Responses,1,202412,04/03/2024,P6,9110493,"-33,829.75 ","33,829.75 ",2000,Buildings Repairs and Maintenance - Reactive,1012,Retford,391.12 
Nottinghamshire Fire and Rescue Service,102280,Amptron Electrical Services,Amptron Electrical Services,Operational Responses,1,202412,04/03/2024,P6,9110493,"-33,829.75 ","33,829.75 ",2000,Buildings Repairs and Maintenance - Reactive,1013,Tuxford,289.16 
Nottinghamshire Fire and Rescue Service,102280,Amptron Electrical Services,Amptron Electrical Services,Operational Responses,1,202412,04/03/2024,P6,9110493,"-33,829.75 ","33,829.75 ",2000,Buildings Repairs and Maintenance - Reactive,1014,Southwell,904.82 
Nottinghamshire Fire and Rescue Service,102280,Amptron Electrical Services,Amptron Electrical Services,Operational Responses,1,202412,04/03/2024,P6,9110493,"-33,829.75 ","33,829.75 ",2000,Buildings Repairs and Maintenance - Reactive,1015,Collingham,515.79 
Nottinghamshire Fire and Rescue Service,102280,Amptron Electrical Services,Amptron Electrical Services,Operational Responses,1,202412,04/03/2024,P6,9110493,"-33,829.75 ","33,829.75 ",2000,Buildings Repairs and Maintenance - Reactive,1016,Newark,"2,216.48 "
Nottinghamshire Fire and Rescue Service,102280,Amptron Electrical Services,Amptron Electrical Services,Operational Responses,1,202412,04/03/2024,P6,9110493,"-33,829.75 ","33,829.75 ",2000,Buildings Repairs and Maintenance - Reactive,1017,Bingham,174.00 
Nottinghamshire Fire and Rescue Service,102280,Amptron Electrical Services,Amptron Electrical Services,Operational Responses,1,202412,04/03/2024,P6,9110493,"-33,829.75 ","33,829.75 ",2000,Buildings Repairs and Maintenance - Reactive,1019,West Bridgford,"3,281.74 "
Nottinghamshire Fire and Rescue Service,102280,Amptron Electrical Services,Amptron Electrical Services,Operational Responses,1,202412,04/03/2024,P6,9110493,"-33,829.75 ","33,829.75 ",2000,Buildings Repairs and Maintenance - Reactive,1020,Stockhill,"1,103.08 "
Nottinghamshire Fire and Rescue Service,102280,Amptron Electrical Services,Amptron Electrical Services,Operational Responses,1,202412,04/03/2024,P6,9110493,"-33,829.75 ","33,829.75 ",2000,Buildings Repairs and Maintenance - Reactive,1023,Stapleford,"1,841.57 "
Nottinghamshire Fire and Rescue Service,102280,Amptron Electrical Services,Amptron Electrical Services,Operational Responses,1,202412,04/03/2024,P6,9110493,"-33,829.75 ","33,829.75 ",2000,Buildings Repairs and Maintenance - Reactive,1024,Eastwood,"1,760.74 "
Nottinghamshire Fire and Rescue Service,102280,Amptron Electrical Services,Amptron Electrical Services,Operational Responses,1,202412,04/03/2024,P6,9110493,"-33,829.75 ","33,829.75 ",2000,Buildings Repairs and Maintenance - Reactive,1025,Hucknall,136.81 
Nottinghamshire Fire and Rescue Service,102280,Amptron Electrical Services,Amptron Electrical Services,Operational Responses,1,202412,04/03/2024,P6,9110493,"-33,829.75 ","33,829.75 ",2000,Buildings Repairs and Maintenance - Reactive,1026,Arnold,821.62 
Nottinghamshire Fire and Rescue Service,102280,Amptron Electrical Services,Amptron Electrical Services,Operational Responses,1,202412,04/03/2024,P6,9110493,"-33,829.75 ","33,829.75 ",2000,Buildings Repairs and Maintenance - Reactive,1027,Carlton,"1,155.79 "
Nottinghamshire Fire and Rescue Service,102280,Amptron Electrical Services,Amptron Electrical Services,Operational Responses,1,202412,04/03/2024,P6,9110493,"-33,829.75 ","33,829.75 ",2000,Buildings Repairs and Maintenance - Reactive,1028,East Leake,227.66 
Nottinghamshire Fire and Rescue Service,102280,Amptron Electrical Services,Amptron Electrical Services,Operational Responses,1,202412,04/03/2024,P6,9110493,"-33,829.75 ","33,829.75 ",2000,Buildings Repairs and Maintenance - Reactive,1029,Highfields Station,"1,573.71 "
Nottinghamshire Fire and Rescue Service,102280,Amptron Electrical Services,Amptron Electrical Services,Management & Support Services,1,202412,04/03/2024,P6,9110493,"-33,829.75 ","33,829.75 ",2000,Buildings Repairs and Maintenance - Reactive,1030,Service Development Centre,"1,193.61 "
Nottinghamshire Fire and Rescue Service,102280,Amptron Electrical Services,Amptron Electrical Services,Operational Responses,1,202412,04/03/2024,P6,9110494,"-41,648.63 ","41,648.63 ",2000,Buildings Repairs and Maintenance - Reactive,1001,Mansfield,"4,664.33 "
Nottinghamshire Fire and Rescue Service,102280,Amptron Electrical Services,Amptron Electrical Services,Operational Responses,1,202412,04/03/2024,P6,9110494,"-41,648.63 ","41,648.63 ",2000,Buildings Repairs and Maintenance - Reactive,1002,Blidworth,148.45 
Nottinghamshire Fire and Rescue Service,102280,Amptron Electrical Services,Amptron Electrical Services,Operational Responses,1,202412,04/03/2024,P6,9110494,"-41,648.63 ","41,648.63 ",2000,Buildings Repairs and Maintenance - Reactive,1003,London Road,"3,078.42 "
Nottinghamshire Fire and Rescue Service,102280,Amptron Electrical Services,Amptron Electrical Services,Operational Responses,1,202412,04/03/2024,P6,9110494,"-41,648.63 ","41,648.63 ",2000,Buildings Repairs and Maintenance - Reactive,1005,Ashfield,116.21 
Nottinghamshire Fire and Rescue Service,102280,Amptron Electrical Services,Amptron Electrical Services,Operational Responses,1,202412,04/03/2024,P6,9110494,"-41,648.63 ","41,648.63 ",2000,Buildings Repairs and Maintenance - Reactive,1006,Edwinstowe,"1,424.34 "
Nottinghamshire Fire and Rescue Service,102280,Amptron Electrical Services,Amptron Electrical Services,Operational Responses,1,202412,04/03/2024,P6,9110494,"-41,648.63 ","41,648.63 ",2000,Buildings Repairs and Maintenance - Reactive,1008,Worksop,68.98 
Nottinghamshire Fire and Rescue Service,102280,Amptron Electrical Services,Amptron Electrical Services,Operational Responses,1,202412,04/03/2024,P6,9110494,"-41,648.63 ","41,648.63 ",2000,Buildings Repairs and Maintenance - Reactive,1011,Misterton,782.40 
Nottinghamshire Fire and Rescue Service,102280,Amptron Electrical Services,Amptron Electrical Services,Operational Responses,1,202412,04/03/2024,P6,9110494,"-41,648.63 ","41,648.63 ",2000,Buildings Repairs and Maintenance - Reactive,1013,Tuxford,21.41 
Nottinghamshire Fire and Rescue Service,102280,Amptron Electrical Services,Amptron Electrical Services,Operational Responses,1,202412,04/03/2024,P6,9110494,"-41,648.63 ","41,648.63 ",2000,Buildings Repairs and Maintenance - Reactive,1014,Southwell,174.47 
Nottinghamshire Fire and Rescue Service,102280,Amptron Electrical Services,Amptron Electrical Services,Operational Responses,1,202412,04/03/2024,P6,9110494,"-41,648.63 ","41,648.63 ",2000,Buildings Repairs and Maintenance - Reactive,1015,Collingham,502.80 
Nottinghamshire Fire and Rescue Service,102280,Amptron Electrical Services,Amptron Electrical Services,Operational Responses,1,202412,04/03/2024,P6,9110494,"-41,648.63 ","41,648.63 ",2000,Buildings Repairs and Maintenance - Reactive,1017,Bingham,"5,999.44 "
Nottinghamshire Fire and Rescue Service,102280,Amptron Electrical Services,Amptron Electrical Services,Operational Responses,1,202412,04/03/2024,P6,9110494,"-41,648.63 ","41,648.63 ",2000,Buildings Repairs and Maintenance - Reactive,1020,Stockhill,"5,406.37 "
Nottinghamshire Fire and Rescue Service,102280,Amptron Electrical Services,Amptron Electrical Services,Operational Responses,1,202412,04/03/2024,P6,9110494,"-41,648.63 ","41,648.63 ",2000,Buildings Repairs and Maintenance - Reactive,1023,Stapleford,91.74 
Nottinghamshire Fire and Rescue Service,102280,Amptron Electrical Services,Amptron Electrical Services,Operational Responses,1,202412,04/03/2024,P6,9110494,"-41,648.63 ","41,648.63 ",2000,Buildings Repairs and Maintenance - Reactive,1025,Hucknall,660.00 
Nottinghamshire Fire and Rescue Service,102280,Amptron Electrical Services,Amptron Electrical Services,Operational Responses,1,202412,04/03/2024,P6,9110494,"-41,648.63 ","41,648.63 ",2000,Buildings Repairs and Maintenance - Reactive,1026,Arnold,"1,161.83 "
Nottinghamshire Fire and Rescue Service,102280,Amptron Electrical Services,Amptron Electrical Services,Operational Responses,1,202412,04/03/2024,P6,9110494,"-41,648.63 ","41,648.63 ",2000,Buildings Repairs and Maintenance - Reactive,1027,Carlton,689.90 
Nottinghamshire Fire and Rescue Service,102280,Amptron Electrical Services,Amptron Electrical Services,Operational Responses,1,202412,04/03/2024,P6,9110494,"-41,648.63 ","41,648.63 ",2000,Buildings Repairs and Maintenance - Reactive,1029,Highfields Station,"6,584.87 "
Nottinghamshire Fire and Rescue Service,102280,Amptron Electrical Services,Amptron Electrical Services,Management & Support Services,1,202412,04/03/2024,P6,9110494,"-41,648.63 ","41,648.63 ",2000,Buildings Repairs and Maintenance - Reactive,1030,Service Development Centre,"3,131.25 "
Nottinghamshire Fire and Rescue Service,102280,Amptron Electrical Services,Amptron Electrical Services,Management & Support Services,1,202412,17/01/2024,P6,9110502,-885.98 ,885.98 ,2000,Buildings Repairs and Maintenance - Reactive,2087,Estates Department (Previously Premises),738.32 
Nottinghamshire Fire and Rescue Service,104334,Bonam and Berry Limitid,Bonam and Berry Limitid,Operational Responses,5,202412,18/03/2024,P6,9110660,-420.00 ,420.00 ,2000,Buildings Repairs and Maintenance - Reactive,1003,London Road,350.00 
Nottinghamshire Fire and Rescue Service,102280,Amptron Electrical Services,Amptron Electrical Services,Management & Support Services,1,202412,13/03/2024,P6,9110667,-411.07 ,411.07 ,2000,Buildings Repairs and Maintenance - Reactive,2087,Estates Department (Previously Premises),342.56 
Nottinghamshire Fire and Rescue Service,103487,East Midlands Ambulance Service NHS Trust,East Midlands Ambulance Service NHS Trust,Operational Responses,1,202412,11/03/2024,P6,9110670,"-10,631.32 ","10,631.32 ",2000,Buildings Repairs and Maintenance - Reactive,1025,Hucknall,275.27 
Nottinghamshire Fire and Rescue Service,102280,Amptron Electrical Services,Amptron Electrical Services,Management & Support Services,1,202412,13/03/2024,P6,9110714,"-1,187.21 ","1,187.21 ",2000,Buildings Repairs and Maintenance - Reactive,2087,Estates Department (Previously Premises),989.34 
Nottinghamshire Fire and Rescue Service,100437,Nottinghamshire Fire Safety Limited,Nottinghamshire Fire Safety Limited,Operational Responses,1,202412,28/03/2024,P6,9111007,"-1,475.14 ","1,475.14 ",2000,Buildings Repairs and Maintenance - Reactive,1001,Mansfield,127.43 
Nottinghamshire Fire and Rescue Service,100437,Nottinghamshire Fire Safety Limited,Nottinghamshire Fire Safety Limited,Operational Responses,1,202412,28/03/2024,P6,9111007,"-1,475.14 ","1,475.14 ",2000,Buildings Repairs and Maintenance - Reactive,1003,London Road,30.95 
Nottinghamshire Fire and Rescue Service,100437,Nottinghamshire Fire Safety Limited,Nottinghamshire Fire Safety Limited,Operational Responses,1,202412,28/03/2024,P6,9111007,"-1,475.14 ","1,475.14 ",2000,Buildings Repairs and Maintenance - Reactive,1005,Ashfield,42.07 
Nottinghamshire Fire and Rescue Service,100437,Nottinghamshire Fire Safety Limited,Nottinghamshire Fire Safety Limited,Operational Responses,1,202412,28/03/2024,P6,9111007,"-1,475.14 ","1,475.14 ",2000,Buildings Repairs and Maintenance - Reactive,1012,Retford,430.68 
Nottinghamshire Fire and Rescue Service,100437,Nottinghamshire Fire Safety Limited,Nottinghamshire Fire Safety Limited,Operational Responses,1,202412,28/03/2024,P6,9111007,"-1,475.14 ","1,475.14 ",2000,Buildings Repairs and Maintenance - Reactive,1016,Newark,40.24 
Nottinghamshire Fire and Rescue Service,100437,Nottinghamshire Fire Safety Limited,Nottinghamshire Fire Safety Limited,Operational Responses,1,202412,28/03/2024,P6,9111007,"-1,475.14 ","1,475.14 ",2000,Buildings Repairs and Maintenance - Reactive,1019,West Bridgford,105.85 
Nottinghamshire Fire and Rescue Service,100437,Nottinghamshire Fire Safety Limited,Nottinghamshire Fire Safety Limited,Operational Responses,1,202412,28/03/2024,P6,9111007,"-1,475.14 ","1,475.14 ",2000,Buildings Repairs and Maintenance - Reactive,1020,Stockhill,40.24 
Nottinghamshire Fire and Rescue Service,100437,Nottinghamshire Fire Safety Limited,Nottinghamshire Fire Safety Limited,Operational Responses,1,202412,28/03/2024,P6,9111007,"-1,475.14 ","1,475.14 ",2000,Buildings Repairs and Maintenance - Reactive,1024,Eastwood,40.24 
Nottinghamshire Fire and Rescue Service,100437,Nottinghamshire Fire Safety Limited,Nottinghamshire Fire Safety Limited,Operational Responses,1,202412,28/03/2024,P6,9111007,"-1,475.14 ","1,475.14 ",2000,Buildings Repairs and Maintenance - Reactive,1028,East Leake,30.95 
Nottinghamshire Fire and Rescue Service,100437,Nottinghamshire Fire Safety Limited,Nottinghamshire Fire Safety Limited,Operational Responses,1,202412,28/03/2024,P6,9111007,"-1,475.14 ","1,475.14 ",2000,Buildings Repairs and Maintenance - Reactive,1029,Highfields Station,69.39 
Nottinghamshire Fire and Rescue Service,100437,Nottinghamshire Fire Safety Limited,Nottinghamshire Fire Safety Limited,Management & Support Services,1,202412,28/03/2024,P6,9111007,"-1,475.14 ","1,475.14 ",2000,Buildings Repairs and Maintenance - Reactive,1030,Service Development Centre,271.24 
Nottinghamshire Fire and Rescue Service,102280,Amptron Electrical Services,Amptron Electrical Services,Operational Responses,1,202412,29/02/2024,P6,9110456,"-15,026.28 ","15,026.28 ",2050,Building Maintenance - Planned,1012,Retford,"2,940.00 "
Nottinghamshire Fire and Rescue Service,102280,Amptron Electrical Services,Amptron Electrical Services,Operational Responses,1,202412,29/02/2024,P6,9110456,"-15,026.28 ","15,026.28 ",2050,Building Maintenance - Planned,1015,Collingham,"2,940.00 "
Nottinghamshire Fire and Rescue Service,102280,Amptron Electrical Services,Amptron Electrical Services,Operational Responses,1,202412,29/02/2024,P6,9110456,"-15,026.28 ","15,026.28 ",2050,Building Maintenance - Planned,1016,Newark,"6,480.76 "
Nottinghamshire Fire and Rescue Service,102280,Amptron Electrical Services,Amptron Electrical Services,Operational Responses,1,202412,29/02/2024,P6,9110456,"-15,026.28 ","15,026.28 ",2050,Building Maintenance - Planned,1024,Eastwood,161.14 
Nottinghamshire Fire and Rescue Service,102280,Amptron Electrical Services,Amptron Electrical Services,Operational Responses,1,202412,28/02/2024,P6,9110457,"-11,651.47 ","11,651.47 ",2050,Building Maintenance - Planned,1001,Mansfield,"1,488.85 "
Nottinghamshire Fire and Rescue Service,102280,Amptron Electrical Services,Amptron Electrical Services,Operational Responses,1,202412,28/02/2024,P6,9110457,"-11,651.47 ","11,651.47 ",2050,Building Maintenance - Planned,1002,Blidworth,169.67 
Nottinghamshire Fire and Rescue Service,102280,Amptron Electrical Services,Amptron Electrical Services,Operational Responses,1,202412,28/02/2024,P6,9110457,"-11,651.47 ","11,651.47 ",2050,Building Maintenance - Planned,1003,London Road,462.95 
Nottinghamshire Fire and Rescue Service,102280,Amptron Electrical Services,Amptron Electrical Services,Operational Responses,1,202412,28/02/2024,P6,9110457,"-11,651.47 ","11,651.47 ",2050,Building Maintenance - Planned,1005,Ashfield,389.15 
Nottinghamshire Fire and Rescue Service,102280,Amptron Electrical Services,Amptron Electrical Services,Operational Responses,1,202412,28/02/2024,P6,9110457,"-11,651.47 ","11,651.47 ",2050,Building Maintenance - Planned,1006,Edwinstowe,435.41 
Nottinghamshire Fire and Rescue Service,102280,Amptron Electrical Services,Amptron Electrical Services,Operational Responses,1,202412,28/02/2024,P6,9110457,"-11,651.47 ","11,651.47 ",2050,Building Maintenance - Planned,1007,Warsop,133.48 
Nottinghamshire Fire and Rescue Service,102280,Amptron Electrical Services,Amptron Electrical Services,Operational Responses,1,202412,28/02/2024,P6,9110457,"-11,651.47 ","11,651.47 ",2050,Building Maintenance - Planned,1008,Worksop,485.33 
Nottinghamshire Fire and Rescue Service,102280,Amptron Electrical Services,Amptron Electrical Services,Operational Responses,1,202412,28/02/2024,P6,9110457,"-11,651.47 ","11,651.47 ",2050,Building Maintenance - Planned,1010,Harworth,169.67 
Nottinghamshire Fire and Rescue Service,102280,Amptron Electrical Services,Amptron Electrical Services,Operational Responses,1,202412,28/02/2024,P6,9110457,"-11,651.47 ","11,651.47 ",2050,Building Maintenance - Planned,1011,Misterton,152.24 
Nottinghamshire Fire and Rescue Service,102280,Amptron Electrical Services,Amptron Electrical Services,Operational Responses,1,202412,28/02/2024,P6,9110457,"-11,651.47 ","11,651.47 ",2050,Building Maintenance - Planned,1012,Retford,497.81 
Nottinghamshire Fire and Rescue Service,102280,Amptron Electrical Services,Amptron Electrical Services,Operational Responses,1,202412,28/02/2024,P6,9110457,"-11,651.47 ","11,651.47 ",2050,Building Maintenance - Planned,1013,Tuxford,341.81 
Nottinghamshire Fire and Rescue Service,102280,Amptron Electrical Services,Amptron Electrical Services,Operational Responses,1,202412,28/02/2024,P6,9110457,"-11,651.47 ","11,651.47 ",2050,Building Maintenance - Planned,1014,Southwell,152.24 
Nottinghamshire Fire and Rescue Service,102280,Amptron Electrical Services,Amptron Electrical Services,Operational Responses,1,202412,28/02/2024,P6,9110457,"-11,651.47 ","11,651.47 ",2050,Building Maintenance - Planned,1015,Collingham,169.67 
Nottinghamshire Fire and Rescue Service,102280,Amptron Electrical Services,Amptron Electrical Services,Operational Responses,1,202412,28/02/2024,P6,9110457,"-11,651.47 ","11,651.47 ",2050,Building Maintenance - Planned,1016,Newark,467.90 
Nottinghamshire Fire and Rescue Service,102280,Amptron Electrical Services,Amptron Electrical Services,Operational Responses,1,202412,28/02/2024,P6,9110457,"-11,651.47 ","11,651.47 ",2050,Building Maintenance - Planned,1017,Bingham,204.53 
Nottinghamshire Fire and Rescue Service,102280,Amptron Electrical Services,Amptron Electrical Services,Operational Responses,1,202412,28/02/2024,P6,9110457,"-11,651.47 ","11,651.47 ",2050,Building Maintenance - Planned,1019,West Bridgford,"1,185.79 "
Nottinghamshire Fire and Rescue Service,102280,Amptron Electrical Services,Amptron Electrical Services,Operational Responses,1,202412,28/02/2024,P6,9110457,"-11,651.47 ","11,651.47 ",2050,Building Maintenance - Planned,1020,Stockhill,476.25 
Nottinghamshire Fire and Rescue Service,102280,Amptron Electrical Services,Amptron Electrical Services,Operational Responses,1,202412,28/02/2024,P6,9110457,"-11,651.47 ","11,651.47 ",2050,Building Maintenance - Planned,1023,Stapleford,168.34 
Nottinghamshire Fire and Rescue Service,102280,Amptron Electrical Services,Amptron Electrical Services,Operational Responses,1,202412,28/02/2024,P6,9110457,"-11,651.47 ","11,651.47 ",2050,Building Maintenance - Planned,1024,Eastwood,204.49 
Nottinghamshire Fire and Rescue Service,102280,Amptron Electrical Services,Amptron Electrical Services,Operational Responses,1,202412,28/02/2024,P6,9110457,"-11,651.47 ","11,651.47 ",2050,Building Maintenance - Planned,1025,Hucknall,35.11 
Nottinghamshire Fire and Rescue Service,102280,Amptron Electrical Services,Amptron Electrical Services,Operational Responses,1,202412,28/02/2024,P6,9110457,"-11,651.47 ","11,651.47 ",2050,Building Maintenance - Planned,1026,Arnold,"1,185.19 "
Nottinghamshire Fire and Rescue Service,102280,Amptron Electrical Services,Amptron Electrical Services,Operational Responses,1,202412,28/02/2024,P6,9110457,"-11,651.47 ","11,651.47 ",2050,Building Maintenance - Planned,1027,Carlton,497.82 
Nottinghamshire Fire and Rescue Service,102280,Amptron Electrical Services,Amptron Electrical Services,Operational Responses,1,202412,28/02/2024,P6,9110457,"-11,651.47 ","11,651.47 ",2050,Building Maintenance - Planned,1028,East Leake,152.24 
Nottinghamshire Fire and Rescue Service,102280,Amptron Electrical Services,Amptron Electrical Services,Management & Support Services,1,202412,28/02/2024,P6,9110457,"-11,651.47 ","11,651.47 ",2050,Building Maintenance - Planned,1030,Service Development Centre,83.62 
Nottinghamshire Fire and Rescue Service,103837,BWT UK Limited,BWT UK Limited,Management & Support Services,5,202412,29/02/2024,P6,9110504,-571.52 ,571.52 ,2050,Building Maintenance - Planned,2087,Estates Department (Previously Premises),476.27 
Nottinghamshire Fire and Rescue Service,103487,East Midlands Ambulance Service NHS Trust,East Midlands Ambulance Service NHS Trust,Operational Responses,1,202412,11/03/2024,P6,9110670,"-10,631.32 ","10,631.32 ",2050,Building Maintenance - Planned,1025,Hucknall,33.17 
Nottinghamshire Fire and Rescue Service,103487,East Midlands Ambulance Service NHS Trust,East Midlands Ambulance Service NHS Trust,Operational Responses,1,202412,11/03/2024,P6,9110670,"-10,631.32 ","10,631.32 ",2050,Building Maintenance - Planned,1025,Hucknall,982.16 
Nottinghamshire Fire and Rescue Service,101767,Cathedral Leasing Limited,Cathedral Leasing Limited,Management & Support Services,1,202412,04/03/2024,P6,9110671,"-3,715.20 ","3,715.20 ",2050,Building Maintenance - Planned,2087,Estates Department (Previously Premises),"3,096.00 "
Nottinghamshire Fire and Rescue Service,104053,Kings Guarding Solutions Ltd,Kings Guarding Solutions Ltd,Management & Support Services,5,202412,29/02/2024,P6,9110719,"-2,010.96 ","2,010.96 ",2050,Building Maintenance - Planned,1035,Headquarters,"1,675.80 "
Nottinghamshire Fire and Rescue Service,102280,Amptron Electrical Services,Amptron Electrical Services,Operational Responses,1,202412,27/03/2024,P6,9110843,"-3,523.49 ","3,523.49 ",2050,Building Maintenance - Planned,1001,Mansfield,"2,936.24 "
Nottinghamshire Fire and Rescue Service,102280,Amptron Electrical Services,Amptron Electrical Services,Operational Responses,1,202412,27/03/2024,P6,9110892,"-15,086.59 ","15,086.59 ",2050,Building Maintenance - Planned,1007,Warsop,"12,572.16 "
Nottinghamshire Fire and Rescue Service,102744,EDF Energy,EDF Energy,Operational Responses,1,202412,27/02/2024,P6,9110460,"-5,585.85 ","5,585.85 ",2100,Electricity,1008,Worksop,"4,654.88 "
Nottinghamshire Fire and Rescue Service,102744,EDF Energy,EDF Energy,Operational Responses,1,202412,29/02/2024,P6,9110497,-498.20 ,498.20 ,2100,Electricity,2078,Mansfield Fire Station Museum,415.16 
Nottinghamshire Fire and Rescue Service,102744,EDF Energy,EDF Energy,Operational Responses,1,202412,29/02/2024,P6,9110507,"-1,484.88 ","1,484.88 ",2100,Electricity,1013,Tuxford,"1,237.40 "
Nottinghamshire Fire and Rescue Service,102744,EDF Energy,EDF Energy,Operational Responses,1,202412,29/02/2024,P6,9110508,"-4,145.27 ","4,145.27 ",2100,Electricity,1001,Mansfield,"3,454.39 "
Nottinghamshire Fire and Rescue Service,102744,EDF Energy,EDF Energy,Operational Responses,1,202412,29/02/2024,P6,9110510,"-2,438.36 ","2,438.36 ",2100,Electricity,1026,Arnold,"2,031.97 "
Nottinghamshire Fire and Rescue Service,102744,EDF Energy,EDF Energy,Operational Responses,1,202412,29/02/2024,P6,9110511,-603.66 ,603.66 ,2100,Electricity,1028,East Leake,503.05 
Nottinghamshire Fire and Rescue Service,102744,EDF Energy,EDF Energy,Operational Responses,1,202412,29/02/2024,P6,9110512,-530.45 ,530.45 ,2100,Electricity,1002,Blidworth,442.04 
Nottinghamshire Fire and Rescue Service,102744,EDF Energy,EDF Energy,Operational Responses,1,202412,29/02/2024,P6,9110513,-589.82 ,589.82 ,2100,Electricity,1014,Southwell,491.52 
Nottinghamshire Fire and Rescue Service,102744,EDF Energy,EDF Energy,Operational Responses,1,202412,01/01/2024,P6,9110514,"-4,310.48 ","4,310.48 ",2100,Electricity,1024,Eastwood,"3,592.07 "
Nottinghamshire Fire and Rescue Service,102744,EDF Energy,EDF Energy,Operational Responses,1,202412,01/03/2024,P6,9110516,"-4,731.48 ","4,731.48 ",2100,Electricity,1008,Worksop,"3,942.90 "
Nottinghamshire Fire and Rescue Service,102744,EDF Energy,EDF Energy,Operational Responses,1,202412,04/03/2024,P6,9110517,-718.91 ,718.91 ,2100,Electricity,1015,Collingham,599.09 
Nottinghamshire Fire and Rescue Service,103487,East Midlands Ambulance Service NHS Trust,East Midlands Ambulance Service NHS Trust,Operational Responses,1,202412,11/03/2024,P6,9110670,"-10,631.32 ","10,631.32 ",2100,Electricity,1025,Hucknall,"3,627.46 "
Nottinghamshire Fire and Rescue Service,102744,EDF Energy,EDF Energy,Operational Responses,1,202412,08/03/2024,P6,9110759,-742.42 ,742.42 ,2100,Electricity,1007,Warsop,618.68 
Nottinghamshire Fire and Rescue Service,102744,EDF Energy,EDF Energy,Operational Responses,1,202412,06/03/2024,P6,9110763,"-31,876.37 ","31,876.37 ",2100,Electricity,1003,London Road,"3,981.34 "
Nottinghamshire Fire and Rescue Service,102744,EDF Energy,EDF Energy,Operational Responses,1,202412,06/03/2024,P6,9110763,"-31,876.37 ","31,876.37 ",2100,Electricity,1012,Retford,"2,357.51 "
Nottinghamshire Fire and Rescue Service,102744,EDF Energy,EDF Energy,Operational Responses,1,202412,06/03/2024,P6,9110763,"-31,876.37 ","31,876.37 ",2100,Electricity,1016,Newark,"2,149.55 "
Nottinghamshire Fire and Rescue Service,102744,EDF Energy,EDF Energy,Operational Responses,1,202412,06/03/2024,P6,9110763,"-31,876.37 ","31,876.37 ",2100,Electricity,1027,Carlton,"3,899.31 "
Nottinghamshire Fire and Rescue Service,102744,EDF Energy,EDF Energy,Operational Responses,1,202412,06/03/2024,P6,9110763,"-31,876.37 ","31,876.37 ",2100,Electricity,1029,Highfields Station,"9,259.10 "
Nottinghamshire Fire and Rescue Service,102744,EDF Energy,EDF Energy,Management & Support Services,1,202412,06/03/2024,P6,9110763,"-31,876.37 ","31,876.37 ",2100,Electricity,1030,Service Development Centre,"3,174.09 "
Nottinghamshire Fire and Rescue Service,102744,EDF Energy,EDF Energy,Management & Support Services,1,202412,06/03/2024,P6,9110763,"-31,876.37 ","31,876.37 ",2100,Electricity,1035,Headquarters,"1,615.85 "
Nottinghamshire Fire and Rescue Service,102744,EDF Energy,EDF Energy,Management & Support Services,1,202412,06/03/2024,P6,9110763,"-31,876.37 ","31,876.37 ",2100,Electricity,2087,Estates Department (Previously Premises),152.29 
Nottinghamshire Fire and Rescue Service,101903,Siemens Energy Services Ltd,Siemens Energy Services Ltd,Operational Responses,1,202412,19/03/2024,P6,9110890,"-1,116.00 ","1,116.00 ",2100,Electricity,1012,Retford,465.00 
Nottinghamshire Fire and Rescue Service,101903,Siemens Energy Services Ltd,Siemens Energy Services Ltd,Operational Responses,1,202412,19/03/2024,P6,9110890,"-1,116.00 ","1,116.00 ",2100,Electricity,1016,Newark,465.00 
Nottinghamshire Fire and Rescue Service,102744,EDF Energy,EDF Energy,Operational Responses,1,202412,02/04/2024,P6,9110915,-532.28 ,532.28 ,2100,Electricity,2078,Mansfield Fire Station Museum,443.57 
Nottinghamshire Fire and Rescue Service,102744,EDF Energy,EDF Energy,Operational Responses,1,202412,02/04/2024,P6,9111060,-671.87 ,671.87 ,2100,Electricity,1015,Collingham,559.89 
Nottinghamshire Fire and Rescue Service,102744,EDF Energy,EDF Energy,Operational Responses,1,202412,02/04/2024,P6,9111061,"-8,354.51 ","8,354.51 ",2100,Electricity,1023,Stapleford,"6,962.10 "
Nottinghamshire Fire and Rescue Service,102744,EDF Energy,EDF Energy,Operational Responses,1,202412,04/04/2024,P6,9111062,-585.35 ,585.35 ,2100,Electricity,1014,Southwell,487.79 
Nottinghamshire Fire and Rescue Service,102744,EDF Energy,EDF Energy,Operational Responses,1,202412,04/04/2024,P6,9111063,-712.49 ,712.49 ,2100,Electricity,1007,Warsop,593.74 
Nottinghamshire Fire and Rescue Service,102744,EDF Energy,EDF Energy,Operational Responses,1,202412,02/04/2024,P6,9111064,"-1,329.46 ","1,329.46 ",2100,Electricity,1013,Tuxford,"1,107.88 "
Nottinghamshire Fire and Rescue Service,102744,EDF Energy,EDF Energy,Operational Responses,1,202412,02/04/2024,P6,9111065,"-3,698.71 ","3,698.71 ",2100,Electricity,1001,Mansfield,"3,082.26 "
Nottinghamshire Fire and Rescue Service,102744,EDF Energy,EDF Energy,Operational Responses,1,202412,02/04/2024,P6,9111067,"-2,461.59 ","2,461.59 ",2100,Electricity,1026,Arnold,"2,051.33 "
Nottinghamshire Fire and Rescue Service,102744,EDF Energy,EDF Energy,Operational Responses,1,202412,02/04/2024,P6,9111068,-578.78 ,578.78 ,2100,Electricity,1002,Blidworth,1.44 
Nottinghamshire Fire and Rescue Service,102744,EDF Energy,EDF Energy,Operational Responses,1,202412,02/04/2024,P6,9111068,-578.78 ,578.78 ,2100,Electricity,1002,Blidworth,481.12 
Nottinghamshire Fire and Rescue Service,102744,EDF Energy,EDF Energy,Operational Responses,1,202412,02/04/2024,P6,9111069,-657.06 ,657.06 ,2100,Electricity,1028,East Leake,547.55 
Nottinghamshire Fire and Rescue Service,102744,EDF Energy,EDF Energy,Operational Responses,1,202412,02/04/2024,P6,9111071,"-4,478.51 ","4,478.51 ",2100,Electricity,1008,Worksop,"3,732.09 "
Nottinghamshire Fire and Rescue Service,102744,EDF Energy,EDF Energy,Operational Responses,1,202412,02/04/2024,P6,9111072,"-3,239.33 ","3,239.33 ",2100,Electricity,1010,Harworth,"2,699.45 "
Nottinghamshire Fire and Rescue Service,102744,EDF Energy,EDF Energy,Operational Responses,1,202412,02/04/2024,P6,9111073,"-1,671.38 ","1,671.38 ",2100,Electricity,1017,Bingham,"1,392.81 "
Nottinghamshire Fire and Rescue Service,102744,EDF Energy,EDF Energy,Operational Responses,1,202412,02/04/2024,P6,9111074,"-5,572.33 ","5,572.33 ",2100,Electricity,1006,Edwinstowe,"4,643.61 "
Nottinghamshire Fire and Rescue Service,102744,EDF Energy,EDF Energy,Operational Responses,1,202412,06/01/2023,P6,9111076,"-28,658.42 ","28,658.42 ",2100,Electricity,1003,London Road,"3,088.30 "
Nottinghamshire Fire and Rescue Service,102744,EDF Energy,EDF Energy,Operational Responses,1,202412,06/01/2023,P6,9111076,"-28,658.42 ","28,658.42 ",2100,Electricity,1012,Retford,"2,233.43 "
Nottinghamshire Fire and Rescue Service,102744,EDF Energy,EDF Energy,Operational Responses,1,202412,06/01/2023,P6,9111076,"-28,658.42 ","28,658.42 ",2100,Electricity,1016,Newark,"1,640.24 "
Nottinghamshire Fire and Rescue Service,102744,EDF Energy,EDF Energy,Operational Responses,1,202412,06/01/2023,P6,9111076,"-28,658.42 ","28,658.42 ",2100,Electricity,1027,Carlton,"3,419.94 "
Nottinghamshire Fire and Rescue Service,102744,EDF Energy,EDF Energy,Operational Responses,1,202412,06/01/2023,P6,9111076,"-28,658.42 ","28,658.42 ",2100,Electricity,1029,Highfields Station,"7,177.74 "
Nottinghamshire Fire and Rescue Service,102744,EDF Energy,EDF Energy,Management & Support Services,1,202412,06/01/2023,P6,9111076,"-28,658.42 ","28,658.42 ",2100,Electricity,1030,Service Development Centre,"3,709.87 "
Nottinghamshire Fire and Rescue Service,102744,EDF Energy,EDF Energy,Management & Support Services,1,202412,06/01/2023,P6,9111076,"-28,658.42 ","28,658.42 ",2100,Electricity,1035,Headquarters,"2,612.50 "
Nottinghamshire Fire and Rescue Service,102744,EDF Energy,EDF Energy,Operational Responses,1,202412,27/02/2024,P6,9110760,"5,590.43 ","-5,590.43 ",2100,Electricity,1008,Worksop,"-4,658.69 "
Nottinghamshire Fire and Rescue Service,101903,Siemens Energy Services Ltd,Siemens Energy Services Ltd,Operational Responses,1,202412,28/03/2024,P6,9111059,321.58 ,-321.58 ,2100,Electricity,1012,Retford,-267.98 
Nottinghamshire Fire and Rescue Service,104098,Total Gas & Power Limited,Total Gas & Power Limited,Management & Support Services,5,202412,29/02/2024,P6,9110459,-601.31 ,601.31 ,2101,Gas,1035,Headquarters,501.09 
Nottinghamshire Fire and Rescue Service,104098,Total Gas & Power Limited,Total Gas & Power Limited,Management & Support Services,5,202412,29/02/2024,P6,9110461,-372.64 ,372.64 ,2101,Gas,1035,Headquarters,354.90 
Nottinghamshire Fire and Rescue Service,104098,Total Gas & Power Limited,Total Gas & Power Limited,Management & Support Services,5,202412,29/02/2024,P6,9110462,-420.63 ,420.63 ,2101,Gas,1035,Headquarters,400.60 
Nottinghamshire Fire and Rescue Service,103487,East Midlands Ambulance Service NHS Trust,East Midlands Ambulance Service NHS Trust,Operational Responses,1,202412,11/03/2024,P6,9110670,"-10,631.32 ","10,631.32 ",2101,Gas,1025,Hucknall,"1,248.54 "
Nottinghamshire Fire and Rescue Service,102655,Nottingham City Council (City Treasurer),Nottingham City Council (City Treasurer),Operational Responses,1,202412,06/03/2024,P6,9110762,"-2,710.39 ","2,710.39 ",2101,Gas,1003,London Road,"2,258.66 "
Nottinghamshire Fire and Rescue Service,104098,Total Gas & Power Limited,Total Gas & Power Limited,Operational Responses,5,202412,13/03/2024,P6,9110764,-380.10 ,380.10 ,2101,Gas,1014,Southwell,362.00 
Nottinghamshire Fire and Rescue Service,104098,Total Gas & Power Limited,Total Gas & Power Limited,Operational Responses,5,202412,13/03/2024,P6,9110765,-879.22 ,879.22 ,2101,Gas,1016,Newark,732.68 
Nottinghamshire Fire and Rescue Service,104098,Total Gas & Power Limited,Total Gas & Power Limited,Operational Responses,5,202412,13/03/2024,P6,9110767,"-2,376.47 ","2,376.47 ",2101,Gas,1019,West Bridgford,"1,980.39 "
Nottinghamshire Fire and Rescue Service,104098,Total Gas & Power Limited,Total Gas & Power Limited,Operational Responses,5,202412,13/03/2024,P6,9110768,"-1,491.74 ","1,491.74 ",2101,Gas,1024,Eastwood,"1,243.12 "
Nottinghamshire Fire and Rescue Service,104098,Total Gas & Power Limited,Total Gas & Power Limited,Operational Responses,5,202412,13/03/2024,P6,9110769,"-1,594.81 ","1,594.81 ",2101,Gas,1012,Retford,"1,329.00 "
Nottinghamshire Fire and Rescue Service,104098,Total Gas & Power Limited,Total Gas & Power Limited,Operational Responses,5,202412,13/03/2024,P6,9110771,"-2,726.87 ","2,726.87 ",2101,Gas,1026,Arnold,"2,272.39 "
Nottinghamshire Fire and Rescue Service,104098,Total Gas & Power Limited,Total Gas & Power Limited,Prevention & Education,5,202412,13/03/2024,P6,9110772,"-1,156.54 ","1,156.54 ",2101,Gas,1036,Clifton Community Safety Centre,963.78 
Nottinghamshire Fire and Rescue Service,104098,Total Gas & Power Limited,Total Gas & Power Limited,Operational Responses,5,202412,13/03/2024,P6,9110773,"-4,201.91 ","4,201.91 ",2101,Gas,1001,Mansfield,"3,501.60 "
Nottinghamshire Fire and Rescue Service,104098,Total Gas & Power Limited,Total Gas & Power Limited,Operational Responses,5,202412,13/03/2024,P6,9110774,"-4,027.60 ","4,027.60 ",2101,Gas,1029,Highfields Station,"3,356.34 "
Nottinghamshire Fire and Rescue Service,104098,Total Gas & Power Limited,Total Gas & Power Limited,Operational Responses,5,202412,13/03/2024,P6,9110775,"-1,808.72 ","1,808.72 ",2101,Gas,1001,Mansfield,"1,507.27 "
Nottinghamshire Fire and Rescue Service,104098,Total Gas & Power Limited,Total Gas & Power Limited,Operational Responses,5,202412,13/03/2024,P6,9110777,"-1,801.06 ","1,801.06 ",2101,Gas,1015,Collingham,"1,500.89 "
Nottinghamshire Fire and Rescue Service,104098,Total Gas & Power Limited,Total Gas & Power Limited,Operational Responses,5,202412,13/03/2024,P6,9110778,"-3,958.91 ","3,958.91 ",2101,Gas,1005,Ashfield,"3,299.09 "
Nottinghamshire Fire and Rescue Service,104098,Total Gas & Power Limited,Total Gas & Power Limited,Operational Responses,5,202412,13/03/2024,P6,9110779,-642.56 ,642.56 ,2101,Gas,1010,Harworth,535.47 
Nottinghamshire Fire and Rescue Service,104098,Total Gas & Power Limited,Total Gas & Power Limited,Operational Responses,5,202412,13/03/2024,P6,9110780,-325.40 ,325.40 ,2101,Gas,1015,Collingham,309.90 
Nottinghamshire Fire and Rescue Service,104098,Total Gas & Power Limited,Total Gas & Power Limited,Operational Responses,5,202412,13/03/2024,P6,9110781,-361.92 ,361.92 ,2101,Gas,1002,Blidworth,344.69 
Nottinghamshire Fire and Rescue Service,104098,Total Gas & Power Limited,Total Gas & Power Limited,Operational Responses,5,202412,13/03/2024,P6,9110782,-876.39 ,876.39 ,2101,Gas,1017,Bingham,730.33 
Nottinghamshire Fire and Rescue Service,104098,Total Gas & Power Limited,Total Gas & Power Limited,Operational Responses,5,202412,13/03/2024,P6,9110783,-264.65 ,264.65 ,2101,Gas,1007,Warsop,252.05 
Nottinghamshire Fire and Rescue Service,104098,Total Gas & Power Limited,Total Gas & Power Limited,Management & Support Services,5,202412,13/03/2024,P6,9110784,-386.16 ,386.16 ,2101,Gas,1035,Headquarters,367.77 
Nottinghamshire Fire and Rescue Service,104098,Total Gas & Power Limited,Total Gas & Power Limited,Management & Support Services,5,202412,13/03/2024,P6,9110785,"-2,446.55 ","2,446.55 ",2101,Gas,1030,Service Development Centre,"2,038.79 "
Nottinghamshire Fire and Rescue Service,104098,Total Gas & Power Limited,Total Gas & Power Limited,Operational Responses,5,202412,13/03/2024,P6,9110786,"-2,642.57 ","2,642.57 ",2101,Gas,1020,Stockhill,"2,202.14 "
Nottinghamshire Fire and Rescue Service,102655,Nottingham City Council (City Treasurer),Nottingham City Council (City Treasurer),Operational Responses,1,202412,05/04/2024,P6,9111075,"-2,621.70 ","2,621.70 ",2101,Gas,1003,London Road,"2,184.75 "
Nottinghamshire Fire and Rescue Service,103487,East Midlands Ambulance Service NHS Trust,East Midlands Ambulance Service NHS Trust,Operational Responses,1,202412,11/03/2024,P6,9110670,"-10,631.32 ","10,631.32 ",2103,Water Rates,1025,Hucknall,260.82 
Nottinghamshire Fire and Rescue Service,104256,Advanced Demand Side Management Limited,Advanced Demand Side Management Limited,Management & Support Services,5,202412,01/03/2024,P6,9110761,"-6,019.54 ","6,019.54 ",2103,Water Rates,2087,Estates Department (Previously Premises),"2,372.06 "
Nottinghamshire Fire and Rescue Service,104256,Advanced Demand Side Management Limited,Advanced Demand Side Management Limited,Management & Support Services,5,202412,01/03/2024,P6,9110761,"-6,019.54 ","6,019.54 ",2104,Sewerage and Environmental,2087,Estates Department (Previously Premises),"3,647.48 "
Nottinghamshire Fire and Rescue Service,103487,East Midlands Ambulance Service NHS Trust,East Midlands Ambulance Service NHS Trust,Operational Responses,1,202412,11/03/2024,P6,9110670,"-10,631.32 ","10,631.32 ",2105,Business Rates,1025,Hucknall,"2,231.51 "
Nottinghamshire Fire and Rescue Service,103847,Veolia ES UK Limited,Veolia ES UK Limited,Management & Support Services,5,202412,31/01/2024,P6,9110648,"-1,340.83 ","1,340.83 ",2106,Refuse / Trade Waste Collection,2086,Procurement,"1,117.36 "
Nottinghamshire Fire and Rescue Service,103847,Veolia ES UK Limited,Veolia ES UK Limited,Management & Support Services,5,202412,29/02/2024,P6,9110653,"-1,364.88 ","1,364.88 ",2106,Refuse / Trade Waste Collection,2086,Procurement,"1,137.40 "
Nottinghamshire Fire and Rescue Service,103487,East Midlands Ambulance Service NHS Trust,East Midlands Ambulance Service NHS Trust,Operational Responses,1,202412,11/03/2024,P6,9110670,"-10,631.32 ","10,631.32 ",2106,Refuse / Trade Waste Collection,1025,Hucknall,126.98 
Nottinghamshire Fire and Rescue Service,101512,Frank Key Group Merchants (Nottingham) Ltd,Frank Key Group Merchants (Nottingham) Ltd,Management & Support Services,1,202412,29/02/2024,P6,9110737,-300.00 ,300.00 ,2106,Refuse / Trade Waste Collection,1035,Headquarters,250.00 
Nottinghamshire Fire and Rescue Service,101512,Frank Key Group Merchants (Nottingham) Ltd,Frank Key Group Merchants (Nottingham) Ltd,Management & Support Services,1,202412,14/02/2024,P6,9110738,-282.00 ,282.00 ,2106,Refuse / Trade Waste Collection,1035,Headquarters,235.00 
Nottinghamshire Fire and Rescue Service,103280,Shred IT Limited,Shred IT Limited,Management & Support Services,5,202412,29/02/2024,P6,9110796,-384.00 ,384.00 ,2106,Refuse / Trade Waste Collection,2086,Procurement,320.00 
Nottinghamshire Fire and Rescue Service,104303,CONFETTI CONSTELLATIONS LIMITED,CONFETTI CONSTELLATIONS LIMITED,Operational Responses,5,202412,18/09/2023,P6,9110991,"-11,999.14 ","11,999.14 ",2200,Rent of Premises,2013,Service Delivery,"9,999.42 "
Nottinghamshire Fire and Rescue Service,100557,NCC Sundry Debtors,NCC Sundry Debtors,Operational Responses,4,202412,01/03/2024,P6,9110908,"-1,980.19 ","1,980.19 ",2201,Grounds Maintenance,1001,Mansfield,38.10 
Nottinghamshire Fire and Rescue Service,100557,NCC Sundry Debtors,NCC Sundry Debtors,Operational Responses,4,202412,01/03/2024,P6,9110908,"-1,980.19 ","1,980.19 ",2201,Grounds Maintenance,1002,Blidworth,67.84 
Nottinghamshire Fire and Rescue Service,100557,NCC Sundry Debtors,NCC Sundry Debtors,Operational Responses,4,202412,01/03/2024,P6,9110908,"-1,980.19 ","1,980.19 ",2201,Grounds Maintenance,1003,London Road,46.25 
Nottinghamshire Fire and Rescue Service,100557,NCC Sundry Debtors,NCC Sundry Debtors,Operational Responses,4,202412,01/03/2024,P6,9110908,"-1,980.19 ","1,980.19 ",2201,Grounds Maintenance,1005,Ashfield,218.75 
Nottinghamshire Fire and Rescue Service,100557,NCC Sundry Debtors,NCC Sundry Debtors,Operational Responses,4,202412,01/03/2024,P6,9110908,"-1,980.19 ","1,980.19 ",2201,Grounds Maintenance,1006,Edwinstowe,45.28 
Nottinghamshire Fire and Rescue Service,100557,NCC Sundry Debtors,NCC Sundry Debtors,Operational Responses,4,202412,01/03/2024,P6,9110908,"-1,980.19 ","1,980.19 ",2201,Grounds Maintenance,1007,Warsop,7.50 
Nottinghamshire Fire and Rescue Service,100557,NCC Sundry Debtors,NCC Sundry Debtors,Operational Responses,4,202412,01/03/2024,P6,9110908,"-1,980.19 ","1,980.19 ",2201,Grounds Maintenance,1008,Worksop,45.85 
Nottinghamshire Fire and Rescue Service,100557,NCC Sundry Debtors,NCC Sundry Debtors,Operational Responses,4,202412,01/03/2024,P6,9110908,"-1,980.19 ","1,980.19 ",2201,Grounds Maintenance,1010,Harworth,44.25 
Nottinghamshire Fire and Rescue Service,100557,NCC Sundry Debtors,NCC Sundry Debtors,Operational Responses,4,202412,01/03/2024,P6,9110908,"-1,980.19 ","1,980.19 ",2201,Grounds Maintenance,1011,Misterton,39.50 
Nottinghamshire Fire and Rescue Service,100557,NCC Sundry Debtors,NCC Sundry Debtors,Operational Responses,4,202412,01/03/2024,P6,9110908,"-1,980.19 ","1,980.19 ",2201,Grounds Maintenance,1012,Retford,26.76 
Nottinghamshire Fire and Rescue Service,100557,NCC Sundry Debtors,NCC Sundry Debtors,Operational Responses,4,202412,01/03/2024,P6,9110908,"-1,980.19 ","1,980.19 ",2201,Grounds Maintenance,1013,Tuxford,30.00 
Nottinghamshire Fire and Rescue Service,100557,NCC Sundry Debtors,NCC Sundry Debtors,Operational Responses,4,202412,01/03/2024,P6,9110908,"-1,980.19 ","1,980.19 ",2201,Grounds Maintenance,1014,Southwell,36.13 
Nottinghamshire Fire and Rescue Service,100557,NCC Sundry Debtors,NCC Sundry Debtors,Operational Responses,4,202412,01/03/2024,P6,9110908,"-1,980.19 ","1,980.19 ",2201,Grounds Maintenance,1015,Collingham,40.80 
Nottinghamshire Fire and Rescue Service,100557,NCC Sundry Debtors,NCC Sundry Debtors,Operational Responses,4,202412,01/03/2024,P6,9110908,"-1,980.19 ","1,980.19 ",2201,Grounds Maintenance,1016,Newark,40.00 
Nottinghamshire Fire and Rescue Service,100557,NCC Sundry Debtors,NCC Sundry Debtors,Operational Responses,4,202412,01/03/2024,P6,9110908,"-1,980.19 ","1,980.19 ",2201,Grounds Maintenance,1017,Bingham,64.08 
Nottinghamshire Fire and Rescue Service,100557,NCC Sundry Debtors,NCC Sundry Debtors,Operational Responses,4,202412,01/03/2024,P6,9110908,"-1,980.19 ","1,980.19 ",2201,Grounds Maintenance,1019,West Bridgford,84.48 
Nottinghamshire Fire and Rescue Service,100557,NCC Sundry Debtors,NCC Sundry Debtors,Operational Responses,4,202412,01/03/2024,P6,9110908,"-1,980.19 ","1,980.19 ",2201,Grounds Maintenance,1020,Stockhill,216.10 
Nottinghamshire Fire and Rescue Service,100557,NCC Sundry Debtors,NCC Sundry Debtors,Operational Responses,4,202412,01/03/2024,P6,9110908,"-1,980.19 ","1,980.19 ",2201,Grounds Maintenance,1023,Stapleford,80.50 
Nottinghamshire Fire and Rescue Service,100557,NCC Sundry Debtors,NCC Sundry Debtors,Operational Responses,4,202412,01/03/2024,P6,9110908,"-1,980.19 ","1,980.19 ",2201,Grounds Maintenance,1024,Eastwood,28.75 
Nottinghamshire Fire and Rescue Service,100557,NCC Sundry Debtors,NCC Sundry Debtors,Operational Responses,4,202412,01/03/2024,P6,9110908,"-1,980.19 ","1,980.19 ",2201,Grounds Maintenance,1026,Arnold,22.08 
Nottinghamshire Fire and Rescue Service,100557,NCC Sundry Debtors,NCC Sundry Debtors,Operational Responses,4,202412,01/03/2024,P6,9110908,"-1,980.19 ","1,980.19 ",2201,Grounds Maintenance,1027,Carlton,39.58 
Nottinghamshire Fire and Rescue Service,100557,NCC Sundry Debtors,NCC Sundry Debtors,Operational Responses,4,202412,01/03/2024,P6,9110908,"-1,980.19 ","1,980.19 ",2201,Grounds Maintenance,1028,East Leake,133.75 
Nottinghamshire Fire and Rescue Service,100557,NCC Sundry Debtors,NCC Sundry Debtors,Operational Responses,4,202412,01/03/2024,P6,9110908,"-1,980.19 ","1,980.19 ",2201,Grounds Maintenance,1029,Highfields Station,97.08 
Nottinghamshire Fire and Rescue Service,100557,NCC Sundry Debtors,NCC Sundry Debtors,Management & Support Services,4,202412,01/03/2024,P6,9110908,"-1,980.19 ","1,980.19 ",2201,Grounds Maintenance,1030,Service Development Centre,156.75 
Nottinghamshire Fire and Rescue Service,100557,NCC Sundry Debtors,NCC Sundry Debtors,Operational Responses,4,202412,01/03/2024,P6,9110505,-864.00 ,864.00 ,2204,Contract Cleaning,1001,Mansfield,30.00 
Nottinghamshire Fire and Rescue Service,100557,NCC Sundry Debtors,NCC Sundry Debtors,Operational Responses,4,202412,01/03/2024,P6,9110505,-864.00 ,864.00 ,2204,Contract Cleaning,1002,Blidworth,30.00 
Nottinghamshire Fire and Rescue Service,100557,NCC Sundry Debtors,NCC Sundry Debtors,Operational Responses,4,202412,01/03/2024,P6,9110505,-864.00 ,864.00 ,2204,Contract Cleaning,1003,London Road,30.00 
Nottinghamshire Fire and Rescue Service,100557,NCC Sundry Debtors,NCC Sundry Debtors,Operational Responses,4,202412,01/03/2024,P6,9110505,-864.00 ,864.00 ,2204,Contract Cleaning,1005,Ashfield,30.00 
Nottinghamshire Fire and Rescue Service,100557,NCC Sundry Debtors,NCC Sundry Debtors,Operational Responses,4,202412,01/03/2024,P6,9110505,-864.00 ,864.00 ,2204,Contract Cleaning,1006,Edwinstowe,30.00 
Nottinghamshire Fire and Rescue Service,100557,NCC Sundry Debtors,NCC Sundry Debtors,Operational Responses,4,202412,01/03/2024,P6,9110505,-864.00 ,864.00 ,2204,Contract Cleaning,1007,Warsop,30.00 
Nottinghamshire Fire and Rescue Service,100557,NCC Sundry Debtors,NCC Sundry Debtors,Operational Responses,4,202412,01/03/2024,P6,9110505,-864.00 ,864.00 ,2204,Contract Cleaning,1008,Worksop,30.00 
Nottinghamshire Fire and Rescue Service,100557,NCC Sundry Debtors,NCC Sundry Debtors,Operational Responses,4,202412,01/03/2024,P6,9110505,-864.00 ,864.00 ,2204,Contract Cleaning,1010,Harworth,30.00 
Nottinghamshire Fire and Rescue Service,100557,NCC Sundry Debtors,NCC Sundry Debtors,Operational Responses,4,202412,01/03/2024,P6,9110505,-864.00 ,864.00 ,2204,Contract Cleaning,1011,Misterton,30.00 
Nottinghamshire Fire and Rescue Service,100557,NCC Sundry Debtors,NCC Sundry Debtors,Operational Responses,4,202412,01/03/2024,P6,9110505,-864.00 ,864.00 ,2204,Contract Cleaning,1012,Retford,30.00 
Nottinghamshire Fire and Rescue Service,100557,NCC Sundry Debtors,NCC Sundry Debtors,Operational Responses,4,202412,01/03/2024,P6,9110505,-864.00 ,864.00 ,2204,Contract Cleaning,1013,Tuxford,30.00 
Nottinghamshire Fire and Rescue Service,100557,NCC Sundry Debtors,NCC Sundry Debtors,Operational Responses,4,202412,01/03/2024,P6,9110505,-864.00 ,864.00 ,2204,Contract Cleaning,1014,Southwell,30.00 
Nottinghamshire Fire and Rescue Service,100557,NCC Sundry Debtors,NCC Sundry Debtors,Operational Responses,4,202412,01/03/2024,P6,9110505,-864.00 ,864.00 ,2204,Contract Cleaning,1015,Collingham,30.00 
Nottinghamshire Fire and Rescue Service,100557,NCC Sundry Debtors,NCC Sundry Debtors,Operational Responses,4,202412,01/03/2024,P6,9110505,-864.00 ,864.00 ,2204,Contract Cleaning,1016,Newark,30.00 
Nottinghamshire Fire and Rescue Service,100557,NCC Sundry Debtors,NCC Sundry Debtors,Operational Responses,4,202412,01/03/2024,P6,9110505,-864.00 ,864.00 ,2204,Contract Cleaning,1017,Bingham,30.00 
Nottinghamshire Fire and Rescue Service,100557,NCC Sundry Debtors,NCC Sundry Debtors,Operational Responses,4,202412,01/03/2024,P6,9110505,-864.00 ,864.00 ,2204,Contract Cleaning,1019,West Bridgford,30.00 
Nottinghamshire Fire and Rescue Service,100557,NCC Sundry Debtors,NCC Sundry Debtors,Operational Responses,4,202412,01/03/2024,P6,9110505,-864.00 ,864.00 ,2204,Contract Cleaning,1020,Stockhill,30.00 
Nottinghamshire Fire and Rescue Service,100557,NCC Sundry Debtors,NCC Sundry Debtors,Operational Responses,4,202412,01/03/2024,P6,9110505,-864.00 ,864.00 ,2204,Contract Cleaning,1023,Stapleford,30.00 
Nottinghamshire Fire and Rescue Service,100557,NCC Sundry Debtors,NCC Sundry Debtors,Operational Responses,4,202412,01/03/2024,P6,9110505,-864.00 ,864.00 ,2204,Contract Cleaning,1024,Eastwood,30.00 
Nottinghamshire Fire and Rescue Service,100557,NCC Sundry Debtors,NCC Sundry Debtors,Operational Responses,4,202412,01/03/2024,P6,9110505,-864.00 ,864.00 ,2204,Contract Cleaning,1026,Arnold,30.00 
Nottinghamshire Fire and Rescue Service,100557,NCC Sundry Debtors,NCC Sundry Debtors,Operational Responses,4,202412,01/03/2024,P6,9110505,-864.00 ,864.00 ,2204,Contract Cleaning,1027,Carlton,30.00 
Nottinghamshire Fire and Rescue Service,100557,NCC Sundry Debtors,NCC Sundry Debtors,Operational Responses,4,202412,01/03/2024,P6,9110505,-864.00 ,864.00 ,2204,Contract Cleaning,1028,East Leake,30.00 
Nottinghamshire Fire and Rescue Service,100557,NCC Sundry Debtors,NCC Sundry Debtors,Operational Responses,4,202412,01/03/2024,P6,9110505,-864.00 ,864.00 ,2204,Contract Cleaning,1029,Highfields Station,30.00 
Nottinghamshire Fire and Rescue Service,100557,NCC Sundry Debtors,NCC Sundry Debtors,Management & Support Services,4,202412,01/03/2024,P6,9110505,-864.00 ,864.00 ,2204,Contract Cleaning,1030,Service Development Centre,30.00 
Nottinghamshire Fire and Rescue Service,100557,NCC Sundry Debtors,NCC Sundry Debtors,Operational Responses,4,202412,01/03/2024,P6,9111057,"-39,783.70 ","39,783.70 ",2204,Contract Cleaning,1001,Mansfield,"2,845.17 "
Nottinghamshire Fire and Rescue Service,100557,NCC Sundry Debtors,NCC Sundry Debtors,Operational Responses,4,202412,01/03/2024,P6,9111057,"-39,783.70 ","39,783.70 ",2204,Contract Cleaning,1002,Blidworth,268.77 
Nottinghamshire Fire and Rescue Service,100557,NCC Sundry Debtors,NCC Sundry Debtors,Operational Responses,4,202412,01/03/2024,P6,9111057,"-39,783.70 ","39,783.70 ",2204,Contract Cleaning,1003,London Road,"3,037.54 "
Nottinghamshire Fire and Rescue Service,100557,NCC Sundry Debtors,NCC Sundry Debtors,Operational Responses,4,202412,01/03/2024,P6,9111057,"-39,783.70 ","39,783.70 ",2204,Contract Cleaning,1005,Ashfield,"1,498.54 "
Nottinghamshire Fire and Rescue Service,100557,NCC Sundry Debtors,NCC Sundry Debtors,Operational Responses,4,202412,01/03/2024,P6,9111057,"-39,783.70 ","39,783.70 ",2204,Contract Cleaning,1006,Edwinstowe,"1,152.27 "
Nottinghamshire Fire and Rescue Service,100557,NCC Sundry Debtors,NCC Sundry Debtors,Operational Responses,4,202412,01/03/2024,P6,9111057,"-39,783.70 ","39,783.70 ",2204,Contract Cleaning,1007,Warsop,230.29 
Nottinghamshire Fire and Rescue Service,100557,NCC Sundry Debtors,NCC Sundry Debtors,Operational Responses,4,202412,01/03/2024,P6,9111057,"-39,783.70 ","39,783.70 ",2204,Contract Cleaning,1008,Worksop,"1,883.29 "
Nottinghamshire Fire and Rescue Service,100557,NCC Sundry Debtors,NCC Sundry Debtors,Operational Responses,4,202412,01/03/2024,P6,9111057,"-39,783.70 ","39,783.70 ",2204,Contract Cleaning,1010,Harworth,422.67 
Nottinghamshire Fire and Rescue Service,100557,NCC Sundry Debtors,NCC Sundry Debtors,Operational Responses,4,202412,01/03/2024,P6,9111057,"-39,783.70 ","39,783.70 ",2204,Contract Cleaning,1011,Misterton,345.72 
Nottinghamshire Fire and Rescue Service,100557,NCC Sundry Debtors,NCC Sundry Debtors,Operational Responses,4,202412,01/03/2024,P6,9111057,"-39,783.70 ","39,783.70 ",2204,Contract Cleaning,1012,Retford,"1,921.77 "
Nottinghamshire Fire and Rescue Service,100557,NCC Sundry Debtors,NCC Sundry Debtors,Operational Responses,4,202412,01/03/2024,P6,9111057,"-39,783.70 ","39,783.70 ",2204,Contract Cleaning,1013,Tuxford,268.77 
Nottinghamshire Fire and Rescue Service,100557,NCC Sundry Debtors,NCC Sundry Debtors,Operational Responses,4,202412,01/03/2024,P6,9111057,"-39,783.70 ","39,783.70 ",2204,Contract Cleaning,1014,Southwell,384.19 
Nottinghamshire Fire and Rescue Service,100557,NCC Sundry Debtors,NCC Sundry Debtors,Operational Responses,4,202412,01/03/2024,P6,9111057,"-39,783.70 ","39,783.70 ",2204,Contract Cleaning,1015,Collingham,384.19 
Nottinghamshire Fire and Rescue Service,100557,NCC Sundry Debtors,NCC Sundry Debtors,Operational Responses,4,202412,01/03/2024,P6,9111057,"-39,783.70 ","39,783.70 ",2204,Contract Cleaning,1016,Newark,"1,498.54 "
Nottinghamshire Fire and Rescue Service,100557,NCC Sundry Debtors,NCC Sundry Debtors,Operational Responses,4,202412,01/03/2024,P6,9111057,"-39,783.70 ","39,783.70 ",2204,Contract Cleaning,1017,Bingham,268.77 
Nottinghamshire Fire and Rescue Service,100557,NCC Sundry Debtors,NCC Sundry Debtors,Operational Responses,4,202412,01/03/2024,P6,9111057,"-39,783.70 ","39,783.70 ",2204,Contract Cleaning,1019,West Bridgford,"2,306.52 "
Nottinghamshire Fire and Rescue Service,100557,NCC Sundry Debtors,NCC Sundry Debtors,Operational Responses,4,202412,01/03/2024,P6,9111057,"-39,783.70 ","39,783.70 ",2204,Contract Cleaning,1020,Stockhill,"1,883.29 "
Nottinghamshire Fire and Rescue Service,100557,NCC Sundry Debtors,NCC Sundry Debtors,Operational Responses,4,202412,01/03/2024,P6,9111057,"-39,783.70 ","39,783.70 ",2204,Contract Cleaning,1023,Stapleford,615.04 
Nottinghamshire Fire and Rescue Service,100557,NCC Sundry Debtors,NCC Sundry Debtors,Operational Responses,4,202412,01/03/2024,P6,9111057,"-39,783.70 ","39,783.70 ",2204,Contract Cleaning,1024,Eastwood,422.67 
Nottinghamshire Fire and Rescue Service,100557,NCC Sundry Debtors,NCC Sundry Debtors,Operational Responses,4,202412,01/03/2024,P6,9111057,"-39,783.70 ","39,783.70 ",2204,Contract Cleaning,1026,Arnold,"1,402.35 "
Nottinghamshire Fire and Rescue Service,100557,NCC Sundry Debtors,NCC Sundry Debtors,Operational Responses,4,202412,01/03/2024,P6,9111057,"-39,783.70 ","39,783.70 ",2204,Contract Cleaning,1027,Carlton,"2,652.79 "
Nottinghamshire Fire and Rescue Service,100557,NCC Sundry Debtors,NCC Sundry Debtors,Operational Responses,4,202412,01/03/2024,P6,9111057,"-39,783.70 ","39,783.70 ",2204,Contract Cleaning,1028,East Leake,268.77 
Nottinghamshire Fire and Rescue Service,100557,NCC Sundry Debtors,NCC Sundry Debtors,Operational Responses,4,202412,01/03/2024,P6,9111057,"-39,783.70 ","39,783.70 ",2204,Contract Cleaning,1029,Highfields Station,"5,075.59 "
Nottinghamshire Fire and Rescue Service,100557,NCC Sundry Debtors,NCC Sundry Debtors,Management & Support Services,4,202412,01/03/2024,P6,9111057,"-39,783.70 ","39,783.70 ",2204,Contract Cleaning,1030,Service Development Centre,"2,115.57 "
Nottinghamshire Fire and Rescue Service,100557,NCC Sundry Debtors,NCC Sundry Debtors,Operational Responses,4,202412,01/03/2024,P6,9110914,-848.00 ,848.00 ,2205,Window Cleaning,1001,Mansfield,50.00 
Nottinghamshire Fire and Rescue Service,100557,NCC Sundry Debtors,NCC Sundry Debtors,Operational Responses,4,202412,01/03/2024,P6,9110914,-848.00 ,848.00 ,2205,Window Cleaning,1002,Blidworth,20.00 
Nottinghamshire Fire and Rescue Service,100557,NCC Sundry Debtors,NCC Sundry Debtors,Operational Responses,4,202412,01/03/2024,P6,9110914,-848.00 ,848.00 ,2205,Window Cleaning,1003,London Road,41.67 
Nottinghamshire Fire and Rescue Service,100557,NCC Sundry Debtors,NCC Sundry Debtors,Operational Responses,4,202412,01/03/2024,P6,9110914,-848.00 ,848.00 ,2205,Window Cleaning,1005,Ashfield,33.33 
Nottinghamshire Fire and Rescue Service,100557,NCC Sundry Debtors,NCC Sundry Debtors,Operational Responses,4,202412,01/03/2024,P6,9110914,-848.00 ,848.00 ,2205,Window Cleaning,1006,Edwinstowe,33.33 
Nottinghamshire Fire and Rescue Service,100557,NCC Sundry Debtors,NCC Sundry Debtors,Operational Responses,4,202412,01/03/2024,P6,9110914,-848.00 ,848.00 ,2205,Window Cleaning,1007,Warsop,21.67 
Nottinghamshire Fire and Rescue Service,100557,NCC Sundry Debtors,NCC Sundry Debtors,Operational Responses,4,202412,01/03/2024,P6,9110914,-848.00 ,848.00 ,2205,Window Cleaning,1008,Worksop,20.00 
Nottinghamshire Fire and Rescue Service,100557,NCC Sundry Debtors,NCC Sundry Debtors,Operational Responses,4,202412,01/03/2024,P6,9110914,-848.00 ,848.00 ,2205,Window Cleaning,1010,Harworth,21.67 
Nottinghamshire Fire and Rescue Service,100557,NCC Sundry Debtors,NCC Sundry Debtors,Operational Responses,4,202412,01/03/2024,P6,9110914,-848.00 ,848.00 ,2205,Window Cleaning,1011,Misterton,20.00 
Nottinghamshire Fire and Rescue Service,100557,NCC Sundry Debtors,NCC Sundry Debtors,Operational Responses,4,202412,01/03/2024,P6,9110914,-848.00 ,848.00 ,2205,Window Cleaning,1012,Retford,50.00 
Nottinghamshire Fire and Rescue Service,100557,NCC Sundry Debtors,NCC Sundry Debtors,Operational Responses,4,202412,01/03/2024,P6,9110914,-848.00 ,848.00 ,2205,Window Cleaning,1013,Tuxford,18.33 
Nottinghamshire Fire and Rescue Service,100557,NCC Sundry Debtors,NCC Sundry Debtors,Operational Responses,4,202412,01/03/2024,P6,9110914,-848.00 ,848.00 ,2205,Window Cleaning,1014,Southwell,16.67 
Nottinghamshire Fire and Rescue Service,100557,NCC Sundry Debtors,NCC Sundry Debtors,Operational Responses,4,202412,01/03/2024,P6,9110914,-848.00 ,848.00 ,2205,Window Cleaning,1015,Collingham,18.33 
Nottinghamshire Fire and Rescue Service,100557,NCC Sundry Debtors,NCC Sundry Debtors,Operational Responses,4,202412,01/03/2024,P6,9110914,-848.00 ,848.00 ,2205,Window Cleaning,1016,Newark,25.00 
Nottinghamshire Fire and Rescue Service,100557,NCC Sundry Debtors,NCC Sundry Debtors,Operational Responses,4,202412,01/03/2024,P6,9110914,-848.00 ,848.00 ,2205,Window Cleaning,1017,Bingham,16.67 
Nottinghamshire Fire and Rescue Service,100557,NCC Sundry Debtors,NCC Sundry Debtors,Operational Responses,4,202412,01/03/2024,P6,9110914,-848.00 ,848.00 ,2205,Window Cleaning,1019,West Bridgford,50.00 
Nottinghamshire Fire and Rescue Service,100557,NCC Sundry Debtors,NCC Sundry Debtors,Operational Responses,4,202412,01/03/2024,P6,9110914,-848.00 ,848.00 ,2205,Window Cleaning,1020,Stockhill,50.00 
Nottinghamshire Fire and Rescue Service,100557,NCC Sundry Debtors,NCC Sundry Debtors,Operational Responses,4,202412,01/03/2024,P6,9110914,-848.00 ,848.00 ,2205,Window Cleaning,1023,Stapleford,18.33 
Nottinghamshire Fire and Rescue Service,100557,NCC Sundry Debtors,NCC Sundry Debtors,Operational Responses,4,202412,01/03/2024,P6,9110914,-848.00 ,848.00 ,2205,Window Cleaning,1024,Eastwood,20.00 
Nottinghamshire Fire and Rescue Service,100557,NCC Sundry Debtors,NCC Sundry Debtors,Operational Responses,4,202412,01/03/2024,P6,9110914,-848.00 ,848.00 ,2205,Window Cleaning,1026,Arnold,25.00 
Nottinghamshire Fire and Rescue Service,100557,NCC Sundry Debtors,NCC Sundry Debtors,Operational Responses,4,202412,01/03/2024,P6,9110914,-848.00 ,848.00 ,2205,Window Cleaning,1027,Carlton,33.33 
Nottinghamshire Fire and Rescue Service,100557,NCC Sundry Debtors,NCC Sundry Debtors,Operational Responses,4,202412,01/03/2024,P6,9110914,-848.00 ,848.00 ,2205,Window Cleaning,1028,East Leake,16.67 
Nottinghamshire Fire and Rescue Service,100557,NCC Sundry Debtors,NCC Sundry Debtors,Operational Responses,4,202412,01/03/2024,P6,9110914,-848.00 ,848.00 ,2205,Window Cleaning,1029,Highfields Station,66.67 
Nottinghamshire Fire and Rescue Service,100557,NCC Sundry Debtors,NCC Sundry Debtors,Management & Support Services,4,202412,01/03/2024,P6,9110914,-848.00 ,848.00 ,2205,Window Cleaning,1030,Service Development Centre,20.00 
Nottinghamshire Fire and Rescue Service,101867,Nottinghamshire Police and Crime Commissioner,Nottinghamshire Police and Crime Commissioner,Management & Support Services,4,202412,28/02/2024,P6,9110503,"-2,725.73 ","2,725.73 ",2207,Hire of Premises,1035,Headquarters,"2,271.44 "
Nottinghamshire Fire and Rescue Service,103820,VIA East Midlands Ltd,VIA East Midlands Ltd,Management & Support Services,5,202412,09/02/2024,P6,9110420,"-11,869.89 ","11,869.89 ",3100,Fleet Maintenance - Planned,2084,Engineering,"9,925.96 "
Nottinghamshire Fire and Rescue Service,103820,VIA East Midlands Ltd,VIA East Midlands Ltd,Management & Support Services,5,202412,17/01/2024,P6,9110617,"-30,570.31 ","30,570.31 ",3100,Fleet Maintenance - Planned,2084,Engineering,"25,549.63 "
Nottinghamshire Fire and Rescue Service,103820,VIA East Midlands Ltd,VIA East Midlands Ltd,Management & Support Services,5,202412,01/03/2024,P6,9110677,"-17,383.68 ","17,383.68 ",3100,Fleet Maintenance - Planned,2084,Engineering,"14,514.34 "
Nottinghamshire Fire and Rescue Service,103114,T Cards Direct,T Cards Direct,Management & Support Services,5,202412,21/03/2024,P6,9110894,"-1,065.60 ","1,065.60 ",3100,Fleet Maintenance - Planned,2084,Engineering,888.00 
Nottinghamshire Fire and Rescue Service,103820,VIA East Midlands Ltd,VIA East Midlands Ltd,Management & Support Services,5,202412,22/03/2024,P6,9111010,"-16,084.06 ","16,084.06 ",3100,Fleet Maintenance - Planned,2084,Engineering,"13,422.16 "
Nottinghamshire Fire and Rescue Service,102364,Woodway Engineering Limited,Woodway Engineering Limited,Management & Support Services,1,202412,12/02/2024,P6,9110605,"-2,707.20 ","2,707.20 ",3101,Fleet Modification,2084,Engineering,"2,256.00 "
Nottinghamshire Fire and Rescue Service,102364,Woodway Engineering Limited,Woodway Engineering Limited,Management & Support Services,1,202412,25/03/2024,P6,9110895,-300.00 ,300.00 ,3101,Fleet Modification,2084,Engineering,250.00 
Nottinghamshire Fire and Rescue Service,102364,Woodway Engineering Limited,Woodway Engineering Limited,Management & Support Services,1,202412,03/04/2024,P6,9111014,"-4,611.53 ","4,611.53 ",3101,Fleet Modification,2084,Engineering,"3,842.94 "
Nottinghamshire Fire and Rescue Service,102228,Keltruck Limited,Keltruck Limited,Management & Support Services,1,202412,23/02/2024,P6,9110523,"-6,000.26 ","6,000.26 ",3102,Vehicle Maintenance Outsourced,2084,Engineering,"5,000.22 "
Nottinghamshire Fire and Rescue Service,101100,Angloco Limited,Angloco Limited,Management & Support Services,1,202412,29/02/2024,P6,9110651,"-1,810.80 ","1,810.80 ",3102,Vehicle Maintenance Outsourced,2084,Engineering,"1,509.00 "
Nottinghamshire Fire and Rescue Service,102228,Keltruck Limited,Keltruck Limited,Management & Support Services,1,202412,15/01/2024,P6,9110654,"-4,655.30 ","4,655.30 ",3102,Vehicle Maintenance Outsourced,2084,Engineering,"3,879.42 "
Nottinghamshire Fire and Rescue Service,102228,Keltruck Limited,Keltruck Limited,Management & Support Services,1,202412,15/03/2024,P6,9110683,-718.61 ,718.61 ,3102,Vehicle Maintenance Outsourced,2084,Engineering,598.84 
Nottinghamshire Fire and Rescue Service,102228,Keltruck Limited,Keltruck Limited,Management & Support Services,1,202412,02/02/2024,P6,9110748,-822.91 ,822.91 ,3102,Vehicle Maintenance Outsourced,2084,Engineering,685.76 
Nottinghamshire Fire and Rescue Service,101723,Beeston Marina Limited,Beeston Marina Limited,Management & Support Services,1,202412,26/03/2024,P6,9110836,-271.04 ,271.04 ,3102,Vehicle Maintenance Outsourced,2084,Engineering,225.86 
Nottinghamshire Fire and Rescue Service,102228,Keltruck Limited,Keltruck Limited,Management & Support Services,1,202412,19/01/2024,P6,9110916,"-11,754.64 ","11,754.64 ",3102,Vehicle Maintenance Outsourced,2084,Engineering,"9,795.53 "
Nottinghamshire Fire and Rescue Service,103820,VIA East Midlands Ltd,VIA East Midlands Ltd,Management & Support Services,5,202412,09/02/2024,P6,9110421,"-51,006.73 ","51,006.73 ",3103,Fleet Maintenance - Unplanned,2084,Engineering,"42,505.61 "
Nottinghamshire Fire and Rescue Service,103820,VIA East Midlands Ltd,VIA East Midlands Ltd,Management & Support Services,5,202412,17/01/2024,P6,9110616,"-69,157.30 ","69,157.30 ",3103,Fleet Maintenance - Unplanned,2084,Engineering,"57,631.08 "
Nottinghamshire Fire and Rescue Service,103820,VIA East Midlands Ltd,VIA East Midlands Ltd,Management & Support Services,5,202412,01/03/2024,P6,9110678,"-68,598.82 ","68,598.82 ",3103,Fleet Maintenance - Unplanned,2084,Engineering,"57,165.68 "
Nottinghamshire Fire and Rescue Service,103820,VIA East Midlands Ltd,VIA East Midlands Ltd,Management & Support Services,5,202412,01/03/2024,P6,9110700,"-3,969.48 ","3,969.48 ",3103,Fleet Maintenance - Unplanned,2084,Engineering,"3,307.90 "
Nottinghamshire Fire and Rescue Service,103820,VIA East Midlands Ltd,VIA East Midlands Ltd,Management & Support Services,5,202412,22/03/2024,P6,9110988,"-47,386.13 ","47,386.13 ",3103,Fleet Maintenance - Unplanned,2084,Engineering,"39,488.44 "
Nottinghamshire Fire and Rescue Service,103820,VIA East Midlands Ltd,VIA East Midlands Ltd,Management & Support Services,5,202412,17/01/2024,P6,9110614,"-3,942.95 ","3,942.95 ",3104,Fleet - Accident Repairs,2084,Engineering,"3,285.79 "
Nottinghamshire Fire and Rescue Service,103820,VIA East Midlands Ltd,VIA East Midlands Ltd,Management & Support Services,5,202412,01/03/2024,P6,9110679,-624.80 ,624.80 ,3104,Fleet - Accident Repairs,2084,Engineering,520.67 
Nottinghamshire Fire and Rescue Service,102228,Keltruck Limited,Keltruck Limited,Management & Support Services,1,202412,18/01/2024,P6,9110721,"-1,395.10 ","1,395.10 ",3104,Fleet - Accident Repairs,2084,Engineering,"1,162.58 "
Nottinghamshire Fire and Rescue Service,102228,Keltruck Limited,Keltruck Limited,Management & Support Services,1,202412,27/03/2024,P6,9110896,"-10,667.93 ","10,667.93 ",3104,Fleet - Accident Repairs,2084,Engineering,"8,889.94 "
Nottinghamshire Fire and Rescue Service,103766,CERTAS,CERTAS,Operational Responses,5,202412,27/02/2024,P6,9110469,"-9,602.17 ","9,602.17 ",3200,Fuel - Vehicle,1029,Highfields Station,"8,001.81 "
Nottinghamshire Fire and Rescue Service,103766,CERTAS,CERTAS,Operational Responses,5,202412,02/02/2024,P6,9110525,"-10,973.66 ","10,973.66 ",3200,Fuel - Vehicle,1005,Ashfield,"9,144.72 "
Nottinghamshire Fire and Rescue Service,103766,CERTAS,CERTAS,Operational Responses,5,202412,13/03/2024,P6,9110689,"-1,415.64 ","1,415.64 ",3200,Fuel - Vehicle,1011,Misterton,"1,179.70 "
Nottinghamshire Fire and Rescue Service,103942,The Lodge Tyre Co. Limited,The Lodge Tyre Co. Limited,Management & Support Services,5,202412,29/02/2024,P6,9110471,"-8,130.01 ","8,130.01 ",3202,Tyres,2084,Engineering,"6,775.04 "
Nottinghamshire Fire and Rescue Service,103942,The Lodge Tyre Co. Limited,The Lodge Tyre Co. Limited,Management & Support Services,5,202412,30/03/2024,P6,9110913,"-9,971.41 ","9,971.41 ",3202,Tyres,2084,Engineering,"8,309.54 "
Nottinghamshire Fire and Rescue Service,100321,Drivercheck Ltd,Drivercheck Ltd,Management & Support Services,1,202412,29/02/2024,P6,9110522,-733.80 ,733.80 ,3203,Motor Tax / Licenses,2084,Engineering,611.50 
Nottinghamshire Fire and Rescue Service,100321,Drivercheck Ltd,Drivercheck Ltd,Management & Support Services,1,202412,31/03/2024,P6,9110995,-427.50 ,427.50 ,3203,Motor Tax / Licenses,2084,Engineering,356.25 
Nottinghamshire Fire and Rescue Service,102207,Scania (Great Britain) Ltd,Scania (Great Britain) Ltd,Management & Support Services,1,202412,10/04/2024,P6,9111053,"-2,160.00 ","2,160.00 ",3203,Motor Tax / Licenses,2084,Engineering,"1,800.00 "
Nottinghamshire Fire and Rescue Service,100202,Enterprise Rent-A-Car,Enterprise Rent-A-Car,Management & Support Services,1,202412,29/02/2024,P6,9110472,"-1,188.03 ","1,188.03 ",3400,Hire of Fleet Vehicles,2084,Engineering,990.02 
Nottinghamshire Fire and Rescue Service,104275,John Chambers,Redacted Personal Data,Operational Responses,2,202412,29/02/2024,P6,9110501,-250.00 ,250.00 ,3500,Casual Mileage,2013,Service Delivery,250.00 
Nottinghamshire Fire and Rescue Service,103958,Lithium3 Technology Recruitment Limited,Lithium3 Technology Recruitment Limited,Management & Support Services,5,202412,29/02/2024,P6,9110637,"-5,151.48 ","5,151.48 ",3500,Casual Mileage,2097,ICT Service Operations,302.90 
Nottinghamshire Fire and Rescue Service,103443,Terberg DTS UK Limited,Terberg DTS UK Limited,Management & Support Services,5,202412,04/03/2024,P6,9110483,-515.52 ,515.52 ,4000,Operational Equipment Purchase,2084,Engineering,429.60 
Nottinghamshire Fire and Rescue Service,103443,Terberg DTS UK Limited,Terberg DTS UK Limited,Management & Support Services,5,202412,04/03/2024,P6,9110484,-402.95 ,402.95 ,4000,Operational Equipment Purchase,2084,Engineering,335.79 
Nottinghamshire Fire and Rescue Service,102119,Radiocoms Systems Ltd,Radiocoms Systems Ltd,Management & Support Services,1,202412,11/03/2024,P6,9110580,"-2,540.10 ","2,540.10 ",4000,Operational Equipment Purchase,2084,Engineering,"2,116.75 "
Nottinghamshire Fire and Rescue Service,102119,Radiocoms Systems Ltd,Radiocoms Systems Ltd,Management & Support Services,1,202412,12/03/2024,P6,9110618,-672.76 ,672.76 ,4000,Operational Equipment Purchase,2084,Engineering,560.63 
Nottinghamshire Fire and Rescue Service,103443,Terberg DTS UK Limited,Terberg DTS UK Limited,Management & Support Services,5,202412,13/03/2024,P6,9110633,-521.12 ,521.12 ,4000,Operational Equipment Purchase,2084,Engineering,434.27 
Nottinghamshire Fire and Rescue Service,101190,Lyon Equipment Limited,Lyon Equipment Limited,Management & Support Services,1,202412,22/03/2024,P6,9110838,"-4,292.64 ","4,292.64 ",4000,Operational Equipment Purchase,2084,Engineering,"3,577.20 "
Nottinghamshire Fire and Rescue Service,100437,Nottinghamshire Fire Safety Limited,Nottinghamshire Fire Safety Limited,Operational Responses,1,202412,22/03/2024,P6,9110845,-293.34 ,293.34 ,4000,Operational Equipment Purchase,1020,Stockhill,244.45 
Nottinghamshire Fire and Rescue Service,100437,Nottinghamshire Fire Safety Limited,Nottinghamshire Fire Safety Limited,Management & Support Services,1,202412,28/03/2024,P6,9110886,"-2,135.71 ","2,135.71 ",4000,Operational Equipment Purchase,2084,Engineering,"1,779.76 "
Nottinghamshire Fire and Rescue Service,100224,Delta Fire,Delta Fire,Management & Support Services,1,202412,04/04/2024,P6,9110970,"-1,540.56 ","1,540.56 ",4000,Operational Equipment Purchase,2084,Engineering,8.00 
Nottinghamshire Fire and Rescue Service,100224,Delta Fire,Delta Fire,Management & Support Services,1,202412,04/04/2024,P6,9110970,"-1,540.56 ","1,540.56 ",4000,Operational Equipment Purchase,2084,Engineering,"1,275.80 "
Nottinghamshire Fire and Rescue Service,104081,Wel Medical Ltd,Wel Medical Ltd,Management & Support Services,5,202412,05/03/2024,P6,9110486,-430.80 ,430.80 ,4001,Operational Equipment (Medical),2084,Engineering,359.00 
Nottinghamshire Fire and Rescue Service,104344,Dr Weigert UK Ltd,Dr Weigert UK Ltd,Management & Support Services,5,202412,27/03/2024,P6,9110902,"-2,241.60 ","2,241.60 ",4002,Breathing Apparatus,2084,Engineering,"1,868.00 "
Nottinghamshire Fire and Rescue Service,100434,Angus Fire,Angus Fire,Management & Support Services,1,202412,07/03/2024,P6,9110582,"-5,886.00 ","5,886.00 ",4004,Fire Hose and Couplings,2084,Engineering,"4,905.00 "
Nottinghamshire Fire and Rescue Service,100257,Supply + Limited,Supply + Limited,Management & Support Services,1,202412,28/02/2024,P6,9110450,"-12,768.10 ","12,768.10 ",4005,Ladders,2084,Engineering,"10,640.08 "
Nottinghamshire Fire and Rescue Service,100257,Supply + Limited,Supply + Limited,Management & Support Services,1,202412,28/02/2024,P6,9110524,"-12,546.74 ","12,546.74 ",4005,Ladders,2084,Engineering,"10,455.62 "
Nottinghamshire Fire and Rescue Service,102203,Flogas Britian Limited,Flogas Britian Limited,Management & Support Services,1,202412,15/03/2024,P6,9110811,"-1,289.57 ","1,289.57 ",4006,Oxygen and Other Gases,2084,Engineering,"1,074.64 "
Nottinghamshire Fire and Rescue Service,100428,Clan Tools & Plant Ltd,Clan Tools & Plant Ltd,Management & Support Services,1,202412,29/03/2024,P6,9111003,-842.40 ,842.40 ,4007,Equipment Annual Service,2084,Engineering,702.00 
Nottinghamshire Fire and Rescue Service,103483,Risual Limited,Risual Limited,Management & Support Services,5,202412,28/02/2024,P6,9110432,-270.00 ,270.00 ,4101,Computer Software Maintenance Contracts,2097,ICT Service Operations,225.00 
Nottinghamshire Fire and Rescue Service,104218,FireServiceRota B.V.,FireServiceRota B.V.,Management & Support Services,5,202412,11/01/2024,P6,9110446,"-52,272.45 ","52,272.45 ",4101,Computer Software Maintenance Contracts,2097,ICT Service Operations,"52,272.45 "
Nottinghamshire Fire and Rescue Service,103373,GTT EMEA Ltd,GTT EMEA Ltd,Management & Support Services,5,202412,25/02/2024,P6,9110448,"-15,129.88 ","15,129.88 ",4101,Computer Software Maintenance Contracts,2095,ICT Digital Transformation,"12,608.23 "
Nottinghamshire Fire and Rescue Service,101866,Leicestershire Fire & Rescue Service (Bacs),Leicestershire Fire & Rescue Service (Bacs),Management & Support Services,4,202412,23/02/2024,P6,9110536,"-7,060.04 ","7,060.04 ",4101,Computer Software Maintenance Contracts,2097,ICT Service Operations,"5,883.37 "
Nottinghamshire Fire and Rescue Service,102097,Bt Global Services,Bt Global Services,Management & Support Services,1,202412,08/02/2024,P6,9110659,"-4,981.26 ","4,981.26 ",4101,Computer Software Maintenance Contracts,2097,ICT Service Operations,70.00 
Nottinghamshire Fire and Rescue Service,102097,Bt Global Services,Bt Global Services,Management & Support Services,1,202412,08/02/2024,P6,9110659,"-4,981.26 ","4,981.26 ",4101,Computer Software Maintenance Contracts,2097,ICT Service Operations,"4,092.72 "
Nottinghamshire Fire and Rescue Service,102215,Performance Monitoring Systems Ltd,Performance Monitoring Systems Ltd,#N/A,1,202412,14/03/2024,P6,9110687,"-2,160.00 ","2,160.00 ",4101,Computer Software Maintenance Contracts,2098,ICT Security,"1,800.00 "
Nottinghamshire Fire and Rescue Service,100265,Unit4 Business Software Ltd,Unit4 Business Software Ltd,Management & Support Services,1,202412,20/03/2024,P6,9110750,"-24,337.93 ","24,337.93 ",4101,Computer Software Maintenance Contracts,2081,Finance,"20,281.61 "
Nottinghamshire Fire and Rescue Service,103003,Caretower Limited,Caretower Limited,Management & Support Services,5,202412,26/02/2024,P6,9110788,"-18,994.68 ","18,994.68 ",4101,Computer Software Maintenance Contracts,2097,ICT Service Operations,"15,828.90 "
Nottinghamshire Fire and Rescue Service,102261,Airwave Solutions Ltd,Airwave Solutions Ltd,Management & Support Services,1,202412,08/03/2024,P6,9110791,"-2,177.74 ","2,177.74 ",4101,Computer Software Maintenance Contracts,2097,ICT Service Operations,791.49 
Nottinghamshire Fire and Rescue Service,103483,Risual Limited,Risual Limited,Management & Support Services,5,202412,29/02/2024,P6,9110795,"-13,605.07 ","13,605.07 ",4101,Computer Software Maintenance Contracts,2097,ICT Service Operations,"11,337.56 "
Nottinghamshire Fire and Rescue Service,103582,Softcat Limited,Softcat Limited,Management & Support Services,5,202412,25/03/2024,P6,9110844,"-18,655.20 ","18,655.20 ",4101,Computer Software Maintenance Contracts,2097,ICT Service Operations,"15,546.00 "
Nottinghamshire Fire and Rescue Service,103373,GTT EMEA Ltd,GTT EMEA Ltd,Management & Support Services,5,202412,25/03/2024,P6,9110860,"-15,129.88 ","15,129.88 ",4101,Computer Software Maintenance Contracts,2095,ICT Digital Transformation,"12,608.23 "
Nottinghamshire Fire and Rescue Service,103483,Risual Limited,Risual Limited,Management & Support Services,5,202412,27/03/2024,P6,9110888,-270.00 ,270.00 ,4101,Computer Software Maintenance Contracts,2097,ICT Service Operations,225.00 
Nottinghamshire Fire and Rescue Service,101645,Ricardo-AEA Ltd,Ricardo-AEA Ltd,Management & Support Services,1,202412,02/04/2024,P6,9110974,"-15,660.00 ","15,660.00 ",4101,Computer Software Maintenance Contracts,2097,ICT Service Operations,"13,050.00 "
Nottinghamshire Fire and Rescue Service,102072,Civica Uk Limited,Civica Uk Limited,Management & Support Services,1,202412,15/02/2024,P6,9111019,"-41,658.80 ","41,658.80 ",4101,Computer Software Maintenance Contracts,2097,ICT Service Operations,"34,715.67 "
Nottinghamshire Fire and Rescue Service,104009,Systel,Systel,Management & Support Services,5,202412,25/03/2024,P6,9110910,"-1,902.00 ","1,902.00 ",4104,Non-Contracted Services - ICT,2097,ICT Service Operations,"1,902.00 "
Nottinghamshire Fire and Rescue Service,102280,Amptron Electrical Services,Amptron Electrical Services,Management & Support Services,1,202412,08/04/2024,P6,9111017,"-4,474.40 ","4,474.40 ",4104,Non-Contracted Services - ICT,4300,ICT Capital Programme,"3,728.67 "
Nottinghamshire Fire and Rescue Service,102097,Bt Global Services,Bt Global Services,Management & Support Services,1,202412,09/11/2023,P6,9110638,"-4,981.26 ","4,981.26 ",4301,Phones - Landline,2097,ICT Service Operations,70.00 
Nottinghamshire Fire and Rescue Service,102097,Bt Global Services,Bt Global Services,Management & Support Services,1,202412,09/11/2023,P6,9110638,"-4,981.26 ","4,981.26 ",4301,Phones - Landline,2097,ICT Service Operations,"4,092.72 "
Nottinghamshire Fire and Rescue Service,102097,Bt Global Services,Bt Global Services,Management & Support Services,1,202412,08/11/2022,P6,9110639,"-2,426.64 ","2,426.64 ",4301,Phones - Landline,2097,ICT Service Operations,70.00 
Nottinghamshire Fire and Rescue Service,102097,Bt Global Services,Bt Global Services,Management & Support Services,1,202412,08/11/2022,P6,9110639,"-2,426.64 ","2,426.64 ",4301,Phones - Landline,2097,ICT Service Operations,"1,963.87 "
Nottinghamshire Fire and Rescue Service,102420,BT PLC,BT PLC,Management & Support Services,1,202412,07/03/2024,P6,9110823,"-2,041.93 ","2,041.93 ",4301,Phones - Landline,2097,ICT Service Operations,"1,701.61 "
Nottinghamshire Fire and Rescue Service,103483,Risual Limited,Risual Limited,Management & Support Services,5,202412,20/03/2024,P6,9110849,"-1,774.68 ","1,774.68 ",4301,Phones - Landline,2097,ICT Service Operations,"1,478.90 "
Nottinghamshire Fire and Rescue Service,103092,Daisy Corporate Services Trading Limited,Daisy Corporate Services Trading Limited,Management & Support Services,1,202412,01/04/2024,P6,9111024,"-9,556.76 ","9,556.76 ",4301,Phones - Landline,2096,ICT Service Transformation,"7,963.97 "
Nottinghamshire Fire and Rescue Service,103426,OV Limited,OV Limited,Management & Support Services,5,202412,01/01/2024,P6,9110430,-500.00 ,500.00 ,4302,Phones - Mobiles,2097,ICT Service Operations,500.00 
Nottinghamshire Fire and Rescue Service,103426,OV Limited,OV Limited,Management & Support Services,5,202412,01/02/2024,P6,9110431,-500.00 ,500.00 ,4302,Phones - Mobiles,2097,ICT Service Operations,500.00 
Nottinghamshire Fire and Rescue Service,103426,OV Limited,OV Limited,Management & Support Services,5,202412,31/08/2023,P6,9110433,-500.00 ,500.00 ,4302,Phones - Mobiles,2097,ICT Service Operations,500.00 
Nottinghamshire Fire and Rescue Service,103426,OV Limited,OV Limited,Management & Support Services,5,202412,30/09/2023,P6,9110434,-500.00 ,500.00 ,4302,Phones - Mobiles,2097,ICT Service Operations,500.00 
Nottinghamshire Fire and Rescue Service,101802,EE,EE,Management & Support Services,1,202412,01/03/2024,P6,9110640,"-3,971.44 ","3,971.44 ",4302,Phones - Mobiles,2097,ICT Service Operations,"3,309.53 "
Nottinghamshire Fire and Rescue Service,103814,Ergo Computing UK,Ergo Computing UK,Management & Support Services,5,202412,15/03/2024,P6,9110664,"-2,279.30 ","2,279.30 ",4302,Phones - Mobiles,2097,ICT Service Operations,"1,899.42 "
Nottinghamshire Fire and Rescue Service,101802,EE,EE,Management & Support Services,1,202412,01/04/2024,P6,9111055,"-3,973.75 ","3,973.75 ",4302,Phones - Mobiles,2097,ICT Service Operations,"3,311.46 "
Nottinghamshire Fire and Rescue Service,103426,OV Limited,OV Limited,Management & Support Services,5,202412,01/04/2024,P6,9111058,-500.00 ,500.00 ,4302,Phones - Mobiles,2097,ICT Service Operations,500.00 
Nottinghamshire Fire and Rescue Service,103887,PageOne Communications Limited - Part Of Capita plc,PageOne Communications Limited - Part Of Capita plc,Management & Support Services,5,202412,22/03/2024,P6,9110911,"-4,990.80 ","4,990.80 ",4303,Pagers,2097,ICT Service Operations,"4,159.00 "
Nottinghamshire Fire and Rescue Service,101490,Safeglove,Safeglove,Management & Support Services,1,202412,03/03/2024,P6,9110591,-394.92 ,394.92 ,4401,Protective Clothing,2086,Procurement,329.10 
Nottinghamshire Fire and Rescue Service,102242,Arco East Midlands,Arco East Midlands,Operational Responses,1,202412,18/03/2024,P6,9110717,-583.92 ,583.92 ,4401,Protective Clothing,1005,Ashfield,162.20 
Nottinghamshire Fire and Rescue Service,102242,Arco East Midlands,Arco East Midlands,Operational Responses,1,202412,18/03/2024,P6,9110717,-583.92 ,583.92 ,4401,Protective Clothing,1005,Ashfield,324.40 
Nottinghamshire Fire and Rescue Service,102280,Amptron Electrical Services,Amptron Electrical Services,Management & Support Services,1,202412,31/03/2024,P6,9110963,"-4,502.88 ","4,502.88 ",4401,Protective Clothing,2086,Procurement,"3,752.40 "
Nottinghamshire Fire and Rescue Service,102376,Bristol Uniforms Limited,Bristol Uniforms Limited,Management & Support Services,1,202412,10/01/2024,P6,9110466,"-10,840.04 ","10,840.04 ",4402,Uniform and Protectice Clothing Repairs,2086,Procurement,"1,875.43 "
Nottinghamshire Fire and Rescue Service,102376,Bristol Uniforms Limited,Bristol Uniforms Limited,Management & Support Services,1,202412,08/02/2024,P6,9110473,"-15,832.20 ","15,832.20 ",4402,Uniform and Protectice Clothing Repairs,2086,Procurement,"1,995.37 "
Nottinghamshire Fire and Rescue Service,104055,Dry Cleaners Limited T/A National Dry Cleaners,Dry Cleaners Limited T/A National Dry Cleaners,Management & Support Services,5,202412,12/03/2024,P6,9110619,-777.97 ,777.97 ,4402,Uniform and Protectice Clothing Repairs,2086,Procurement,648.30 
Nottinghamshire Fire and Rescue Service,102376,Bristol Uniforms Limited,Bristol Uniforms Limited,Management & Support Services,1,202412,10/12/2023,P6,9110636,"-15,608.18 ","15,608.18 ",4402,Uniform and Protectice Clothing Repairs,2086,Procurement,"3,345.75 "
Nottinghamshire Fire and Rescue Service,102376,Bristol Uniforms Limited,Bristol Uniforms Limited,Management & Support Services,1,202412,07/03/2024,P6,9110901,"-16,811.56 ","16,811.56 ",4402,Uniform and Protectice Clothing Repairs,2086,Procurement,"2,004.96 "
Nottinghamshire Fire and Rescue Service,102376,Bristol Uniforms Limited,Bristol Uniforms Limited,Management & Support Services,1,202412,10/01/2024,P6,9110466,"-10,840.04 ","10,840.04 ",4403,Laundry and Dry Cleaning,2086,Procurement,"7,157.94 "
Nottinghamshire Fire and Rescue Service,102376,Bristol Uniforms Limited,Bristol Uniforms Limited,Management & Support Services,1,202412,08/02/2024,P6,9110473,"-15,832.20 ","15,832.20 ",4403,Laundry and Dry Cleaning,2086,Procurement,"11,198.13 "
Nottinghamshire Fire and Rescue Service,102376,Bristol Uniforms Limited,Bristol Uniforms Limited,Management & Support Services,1,202412,10/12/2023,P6,9110636,"-15,608.18 ","15,608.18 ",4403,Laundry and Dry Cleaning,2086,Procurement,"9,661.07 "
Nottinghamshire Fire and Rescue Service,102376,Bristol Uniforms Limited,Bristol Uniforms Limited,Management & Support Services,1,202412,07/03/2024,P6,9110901,"-16,811.56 ","16,811.56 ",4403,Laundry and Dry Cleaning,2086,Procurement,"12,004.67 "
Nottinghamshire Fire and Rescue Service,104321,Combined Office Interiors ltd,Combined Office Interiors ltd,Management & Support Services,5,202412,02/04/2024,P6,9110971,-707.26 ,707.26 ,4501,Office Equipment,1086,Corporate Core,589.38 
Nottinghamshire Fire and Rescue Service,103678,Fitness Warehouse Limited t/a Gym Gear,Fitness Warehouse Limited t/a Gym Gear,Management & Support Services,5,202412,05/03/2024,P6,9110526,-954.00 ,954.00 ,4510,Fitness Equipment,2061,Occupational Health & Fitness,795.00 
Nottinghamshire Fire and Rescue Service,103678,Fitness Warehouse Limited t/a Gym Gear,Fitness Warehouse Limited t/a Gym Gear,Management & Support Services,5,202412,05/03/2024,P6,9110527,-954.00 ,954.00 ,4511,Fitness Equipment Maintenance,2061,Occupational Health & Fitness,795.00 
Nottinghamshire Fire and Rescue Service,103678,Fitness Warehouse Limited t/a Gym Gear,Fitness Warehouse Limited t/a Gym Gear,Management & Support Services,5,202412,05/03/2024,P6,9110528,"-1,164.00 ","1,164.00 ",4511,Fitness Equipment Maintenance,2061,Occupational Health & Fitness,970.00 
Nottinghamshire Fire and Rescue Service,103678,Fitness Warehouse Limited t/a Gym Gear,Fitness Warehouse Limited t/a Gym Gear,Management & Support Services,5,202412,05/03/2024,P6,9110529,-954.00 ,954.00 ,4511,Fitness Equipment Maintenance,2061,Occupational Health & Fitness,795.00 
Nottinghamshire Fire and Rescue Service,103487,East Midlands Ambulance Service NHS Trust,East Midlands Ambulance Service NHS Trust,Operational Responses,1,202412,11/03/2024,P6,9110670,"-10,631.32 ","10,631.32 ",4512,Medical Equipment Maintenance,1025,Hucknall,73.47 
Nottinghamshire Fire and Rescue Service,103695,Pulp Friction Smoothie Bar CIC,Pulp Friction Smoothie Bar CIC,Management & Support Services,5,202412,04/03/2024,P6,9110479,-252.00 ,252.00 ,4523,Catering/Food & Beverages,2093,Command Suite,210.00 
Nottinghamshire Fire and Rescue Service,104273,Fine Foods Exchange,Fine Foods Exchange,Operational Responses,5,202412,28/02/2024,P6,9110534,-734.40 ,734.40 ,4523,Catering/Food & Beverages,2074,Operational Training,612.00 
Nottinghamshire Fire and Rescue Service,104273,Fine Foods Exchange,Fine Foods Exchange,Operational Responses,5,202412,28/02/2024,P6,9110541,"-2,397.00 ","2,397.00 ",4523,Catering/Food & Beverages,2074,Operational Training,"1,997.50 "
Nottinghamshire Fire and Rescue Service,102711,Posh Nosh (East Midlands) Limited,Posh Nosh (East Midlands) Limited,Fire Service Emergency Planning & Civil Defence,5,202412,08/03/2024,P6,9110631,-264.00 ,264.00 ,4523,Catering/Food & Beverages,2009,Resiliance & Emergency Planning,10.00 
Nottinghamshire Fire and Rescue Service,102711,Posh Nosh (East Midlands) Limited,Posh Nosh (East Midlands) Limited,Fire Service Emergency Planning & Civil Defence,5,202412,08/03/2024,P6,9110631,-264.00 ,264.00 ,4523,Catering/Food & Beverages,2009,Resiliance & Emergency Planning,35.00 
Nottinghamshire Fire and Rescue Service,102711,Posh Nosh (East Midlands) Limited,Posh Nosh (East Midlands) Limited,Fire Service Emergency Planning & Civil Defence,5,202412,08/03/2024,P6,9110631,-264.00 ,264.00 ,4523,Catering/Food & Beverages,2009,Resiliance & Emergency Planning,175.00 
Nottinghamshire Fire and Rescue Service,103358,JSMTC (Joint Service Mountain Training Centre),JSMTC (Joint Service Mountain Training Centre),Operational Responses,5,202412,25/03/2024,P6,9110839,-277.62 ,277.62 ,4523,Catering/Food & Beverages,2074,Operational Training,277.62 
Nottinghamshire Fire and Rescue Service,103358,JSMTC (Joint Service Mountain Training Centre),JSMTC (Joint Service Mountain Training Centre),Operational Responses,5,202412,28/03/2024,P6,9110863,-277.62 ,277.62 ,4523,Catering/Food & Beverages,2074,Operational Training,277.62 
Nottinghamshire Fire and Rescue Service,103695,Pulp Friction Smoothie Bar CIC,Pulp Friction Smoothie Bar CIC,Management & Support Services,5,202412,27/03/2024,P6,9110868,-421.20 ,421.20 ,4523,Catering/Food & Beverages,2073,Assurance and Risk,351.00 
Nottinghamshire Fire and Rescue Service,104064,Redbrick Print Solutions LLP,Redbrick Print Solutions LLP,Management & Support Services,5,202412,26/03/2024,P6,9110864,-360.00 ,360.00 ,4532,Stationery,2075,Service Support Hub,300.00 
Nottinghamshire Fire and Rescue Service,100290,Lemaitre Ltd,Lemaitre Ltd,Management & Support Services,1,202412,21/02/2024,P6,9110467,-263.52 ,263.52 ,4534,Carriage and Packaging,2086,Procurement,45.00 
Nottinghamshire Fire and Rescue Service,104081,Wel Medical Ltd,Wel Medical Ltd,Management & Support Services,5,202412,01/03/2024,P6,9110485,-390.90 ,390.90 ,4534,Carriage and Packaging,9999,Default,5.95 
Nottinghamshire Fire and Rescue Service,101890,RFD Beaufort Limited,RFD Beaufort Limited,Management & Support Services,1,202412,08/03/2024,P6,9110581,-334.80 ,334.80 ,4534,Carriage and Packaging,9999,Default,19.00 
Nottinghamshire Fire and Rescue Service,103406,Vimpex Limited,Vimpex Limited,Management & Support Services,5,202412,13/03/2024,P6,9110649,-402.00 ,402.00 ,4534,Carriage and Packaging,2086,Procurement,15.00 
Nottinghamshire Fire and Rescue Service,102495,Rosenbauer UK Plc,Rosenbauer UK Plc,Management & Support Services,1,202412,14/03/2024,P6,9110728,-712.56 ,712.56 ,4534,Carriage and Packaging,2086,Procurement,9.80 
Nottinghamshire Fire and Rescue Service,100468,Specialised Canvas Group,Specialised Canvas Group,Management & Support Services,1,202412,21/03/2024,P6,9110742,-358.25 ,358.25 ,4534,Carriage and Packaging,2086,Procurement,15.61 
Nottinghamshire Fire and Rescue Service,102306,Northern Diver (International) Ltd,Northern Diver (International) Ltd,Management & Support Services,1,202412,18/03/2024,P6,9110800,-845.40 ,845.40 ,4534,Carriage and Packaging,2086,Procurement,19.00 
Nottinghamshire Fire and Rescue Service,102306,Northern Diver (International) Ltd,Northern Diver (International) Ltd,Management & Support Services,1,202412,24/11/2023,P6,9110852,"-1,007.40 ","1,007.40 ",4534,Carriage and Packaging,9999,Default,9.50 
Nottinghamshire Fire and Rescue Service,100723,J Hudson & Co (Whistles) Ltd,J Hudson & Co (Whistles) Ltd,Management & Support Services,1,202412,06/03/2024,P6,9110853,-613.18 ,613.18 ,4534,Carriage and Packaging,9999,Default,11.48 
Nottinghamshire Fire and Rescue Service,104064,Redbrick Print Solutions LLP,Redbrick Print Solutions LLP,Management & Support Services,5,202412,16/02/2024,P6,9110428,-444.00 ,444.00 ,4536,Graphic Design,2051,Corporate Communications,370.00 
Nottinghamshire Fire and Rescue Service,102191,Anglian Water Services Ltd (Hydrants repairs),Anglian Water Services Ltd (Hydrants repairs),Management & Support Services,1,202412,23/02/2024,P6,9110551,-571.20 ,571.20 ,4541,Hydrant Maintenance,2084,Engineering,476.00 
Nottinghamshire Fire and Rescue Service,104247,Farndon Harbour Moorings Ltd. T/S Farndon Marina,Farndon Harbour Moorings Ltd. T/S Farndon Marina,Management & Support Services,5,202412,26/03/2024,P6,9110825,"-3,918.00 ","3,918.00 ",4541,Hydrant Maintenance,2084,Engineering,"3,265.00 "
Nottinghamshire Fire and Rescue Service,100395,Severn Trent Water Ltd,Severn Trent Water Ltd,Management & Support Services,1,202412,28/03/2024,P6,9110862,"-2,168.46 ","2,168.46 ",4541,Hydrant Maintenance,2084,Engineering,"1,807.05 "
Nottinghamshire Fire and Rescue Service,100395,Severn Trent Water Ltd,Severn Trent Water Ltd,Management & Support Services,1,202412,28/03/2024,P6,9110866,-482.50 ,482.50 ,4541,Hydrant Maintenance,2084,Engineering,402.08 
Nottinghamshire Fire and Rescue Service,100395,Severn Trent Water Ltd,Severn Trent Water Ltd,Management & Support Services,1,202412,28/03/2024,P6,9110875,"-1,866.13 ","1,866.13 ",4541,Hydrant Maintenance,2084,Engineering,"1,555.11 "
Nottinghamshire Fire and Rescue Service,100395,Severn Trent Water Ltd,Severn Trent Water Ltd,Management & Support Services,1,202412,28/03/2024,P6,9110876,"-1,866.13 ","1,866.13 ",4541,Hydrant Maintenance,2084,Engineering,"1,555.11 "
Nottinghamshire Fire and Rescue Service,100395,Severn Trent Water Ltd,Severn Trent Water Ltd,Management & Support Services,1,202412,28/03/2024,P6,9110877,-482.50 ,482.50 ,4541,Hydrant Maintenance,2084,Engineering,402.08 
Nottinghamshire Fire and Rescue Service,100395,Severn Trent Water Ltd,Severn Trent Water Ltd,Management & Support Services,1,202412,28/03/2024,P6,9110879,-482.50 ,482.50 ,4541,Hydrant Maintenance,2084,Engineering,402.08 
Nottinghamshire Fire and Rescue Service,100395,Severn Trent Water Ltd,Severn Trent Water Ltd,Management & Support Services,1,202412,28/03/2024,P6,9110880,-482.50 ,482.50 ,4541,Hydrant Maintenance,2084,Engineering,402.08 
Nottinghamshire Fire and Rescue Service,100395,Severn Trent Water Ltd,Severn Trent Water Ltd,Management & Support Services,1,202412,28/03/2024,P6,9110882,"-2,168.46 ","2,168.46 ",4541,Hydrant Maintenance,2084,Engineering,"1,807.05 "
Nottinghamshire Fire and Rescue Service,103981,Joseph Gleave and Son Limited -Joseph Gleave and Son (Holdings) Limited,Joseph Gleave and Son Limited -Joseph Gleave and Son (Holdings) Limited,Management & Support Services,5,202412,28/03/2024,P6,9110905,-558.12 ,558.12 ,4541,Hydrant Maintenance,2084,Engineering,465.10 
Nottinghamshire Fire and Rescue Service,100434,Angus Fire,Angus Fire,Management & Support Services,1,202412,28/03/2024,P6,9110907,"-6,036.00 ","6,036.00 ",4541,Hydrant Maintenance,2084,Engineering,"5,030.00 "
Nottinghamshire Fire and Rescue Service,104247,Farndon Harbour Moorings Ltd. T/S Farndon Marina,Farndon Harbour Moorings Ltd. T/S Farndon Marina,Management & Support Services,5,202412,05/04/2024,P6,9110969,-780.61 ,780.61 ,4541,Hydrant Maintenance,2084,Engineering,650.51 
Nottinghamshire Fire and Rescue Service,102964,Trinity Occupational and Public Health Solutions Ltd,Trinity Occupational and Public Health Solutions Ltd,Management & Support Services,5,202412,29/02/2024,P6,9110573,"-6,000.00 ","6,000.00 ",4552,Occupational Health Costs,2061,Occupational Health & Fitness,"6,000.00 "
Nottinghamshire Fire and Rescue Service,104309,JM PHYSIOTHERAPY,JM PHYSIOTHERAPY,Management & Support Services,5,202412,06/03/2024,P6,9110606,-400.00 ,400.00 ,4552,Occupational Health Costs,2061,Occupational Health & Fitness,400.00 
Nottinghamshire Fire and Rescue Service,104309,JM PHYSIOTHERAPY,JM PHYSIOTHERAPY,Management & Support Services,5,202412,25/03/2024,P6,9111001,-360.00 ,360.00 ,4552,Occupational Health Costs,2061,Occupational Health & Fitness,360.00 
Nottinghamshire Fire and Rescue Service,102964,Trinity Occupational and Public Health Solutions Ltd,Trinity Occupational and Public Health Solutions Ltd,Management & Support Services,5,202412,28/03/2024,P6,9111049,"-5,950.00 ","5,950.00 ",4552,Occupational Health Costs,2061,Occupational Health & Fitness,750.00 
Nottinghamshire Fire and Rescue Service,102964,Trinity Occupational and Public Health Solutions Ltd,Trinity Occupational and Public Health Solutions Ltd,Management & Support Services,5,202412,28/03/2024,P6,9111049,"-5,950.00 ","5,950.00 ",4552,Occupational Health Costs,2061,Occupational Health & Fitness,"5,200.00 "
Nottinghamshire Fire and Rescue Service,102085,Gaskell Associates,Gaskell Associates,Management & Support Services,1,202412,28/03/2024,P6,9111002,"-9,450.00 ","9,450.00 ",4554,Consultancy Fees - Non Estates Related,2087,Estates Department (Previously Premises),"7,875.00 "
Nottinghamshire Fire and Rescue Service,102033,Valuation Office Agency,Valuation Office Agency,Management & Support Services,1,202412,03/04/2024,P6,9111015,"-2,400.00 ","2,400.00 ",4554,Consultancy Fees - Non Estates Related,2081,Finance,"2,000.00 "
Nottinghamshire Fire and Rescue Service,101000,C F S Messing Account Stockhill,C F S Messing Account Stockhill,Operational Responses,8,202412,31/01/2024,P6,9110739,-297.50 ,297.50 ,4560,Subsistence,1020,Stockhill,84.50 
Nottinghamshire Fire and Rescue Service,101000,C F S Messing Account Stockhill,C F S Messing Account Stockhill,Operational Responses,8,202412,31/12/2023,P6,9110740,-355.00 ,355.00 ,4560,Subsistence,1020,Stockhill,91.00 
Nottinghamshire Fire and Rescue Service,100019,Nuffield Sailing Centre,Nuffield Sailing Centre,Management & Support Services,1,202412,16/03/2024,P6,9110692,-880.00 ,880.00 ,4561,Overnight Accomodation,2059,Corporate Training,840.00 
Nottinghamshire Fire and Rescue Service,100019,Nuffield Sailing Centre,Nuffield Sailing Centre,Management & Support Services,1,202412,31/03/2024,P6,9111054,-880.00 ,880.00 ,4561,Overnight Accomodation,2059,Corporate Training,840.00 
Nottinghamshire Fire and Rescue Service,104274,Hindu Temple and Community Centre,Hindu Temple and Community Centre,Management & Support Services,5,202412,24/01/2024,P6,9110569,"-3,730.00 ","3,730.00 ",4563,Conference Expenses - Staff,2065,Pan Organisation,"3,730.00 "
Nottinghamshire Fire and Rescue Service,104328,ALIVE WITH IDEAS,ALIVE WITH IDEAS,Management & Support Services,5,202412,29/12/2023,P6,9110587,"-7,213.50 ","7,213.50 ",4563,Conference Expenses - Staff,2051,Corporate Communications,"6,011.25 "
Nottinghamshire Fire and Rescue Service,104299,Barbour EHS Limited,Barbour EHS Limited,"Statutory Inspection, Certification & Enforcement",5,202412,07/03/2024,P6,9110590,"-8,102.08 ","8,102.08 ",4581,Subscriptions,2021,Fire Protection,"6,751.73 "
Nottinghamshire Fire and Rescue Service,100236,Asian Fire Service Association,Asian Fire Service Association,Management & Support Services,1,202412,20/03/2024,P6,9110758,"-1,000.00 ","1,000.00 ",4581,Subscriptions,2054,Equalities Team,"1,000.00 "
Nottinghamshire Fire and Rescue Service,104333,Cuckoo Films,Cuckoo Films,Management & Support Services,10,202412,29/02/2024,P6,9110489,-525.00 ,525.00 ,4583,Marketing and Publicity,2051,Corporate Communications,437.50 
Nottinghamshire Fire and Rescue Service,104064,Redbrick Print Solutions LLP,Redbrick Print Solutions LLP,"Statutory Inspection, Certification & Enforcement",5,202412,29/02/2024,P6,9110903,-576.00 ,576.00 ,4583,Marketing and Publicity,2021,Fire Protection,480.00 
Nottinghamshire Fire and Rescue Service,100437,Nottinghamshire Fire Safety Limited,Nottinghamshire Fire Safety Limited,Operational Responses,1,202412,22/03/2024,P6,9110891,"-2,489.70 ","2,489.70 ",4591,Fire Precaution Maintenance,1001,Mansfield,127.75 
Nottinghamshire Fire and Rescue Service,100437,Nottinghamshire Fire Safety Limited,Nottinghamshire Fire Safety Limited,Operational Responses,1,202412,22/03/2024,P6,9110891,"-2,489.70 ","2,489.70 ",4591,Fire Precaution Maintenance,1002,Blidworth,62.65 
Nottinghamshire Fire and Rescue Service,100437,Nottinghamshire Fire Safety Limited,Nottinghamshire Fire Safety Limited,Operational Responses,1,202412,22/03/2024,P6,9110891,"-2,489.70 ","2,489.70 ",4591,Fire Precaution Maintenance,1003,London Road,123.10 
Nottinghamshire Fire and Rescue Service,100437,Nottinghamshire Fire Safety Limited,Nottinghamshire Fire Safety Limited,Operational Responses,1,202412,22/03/2024,P6,9110891,"-2,489.70 ","2,489.70 ",4591,Fire Precaution Maintenance,1005,Ashfield,90.55 
Nottinghamshire Fire and Rescue Service,100437,Nottinghamshire Fire Safety Limited,Nottinghamshire Fire Safety Limited,Operational Responses,1,202412,22/03/2024,P6,9110891,"-2,489.70 ","2,489.70 ",4591,Fire Precaution Maintenance,1006,Edwinstowe,62.65 
Nottinghamshire Fire and Rescue Service,100437,Nottinghamshire Fire Safety Limited,Nottinghamshire Fire Safety Limited,Operational Responses,1,202412,22/03/2024,P6,9110891,"-2,489.70 ","2,489.70 ",4591,Fire Precaution Maintenance,1007,Warsop,52.55 
Nottinghamshire Fire and Rescue Service,100437,Nottinghamshire Fire Safety Limited,Nottinghamshire Fire Safety Limited,Operational Responses,1,202412,22/03/2024,P6,9110891,"-2,489.70 ","2,489.70 ",4591,Fire Precaution Maintenance,1008,Worksop,95.20 
Nottinghamshire Fire and Rescue Service,100437,Nottinghamshire Fire Safety Limited,Nottinghamshire Fire Safety Limited,Operational Responses,1,202412,22/03/2024,P6,9110891,"-2,489.70 ","2,489.70 ",4591,Fire Precaution Maintenance,1010,Harworth,53.35 
Nottinghamshire Fire and Rescue Service,100437,Nottinghamshire Fire Safety Limited,Nottinghamshire Fire Safety Limited,Operational Responses,1,202412,22/03/2024,P6,9110891,"-2,489.70 ","2,489.70 ",4591,Fire Precaution Maintenance,1011,Misterton,85.90 
Nottinghamshire Fire and Rescue Service,100437,Nottinghamshire Fire Safety Limited,Nottinghamshire Fire Safety Limited,Operational Responses,1,202412,22/03/2024,P6,9110891,"-2,489.70 ","2,489.70 ",4591,Fire Precaution Maintenance,1012,Retford,123.10 
Nottinghamshire Fire and Rescue Service,100437,Nottinghamshire Fire Safety Limited,Nottinghamshire Fire Safety Limited,Operational Responses,1,202412,22/03/2024,P6,9110891,"-2,489.70 ","2,489.70 ",4591,Fire Precaution Maintenance,1013,Tuxford,71.95 
Nottinghamshire Fire and Rescue Service,100437,Nottinghamshire Fire Safety Limited,Nottinghamshire Fire Safety Limited,Operational Responses,1,202412,22/03/2024,P6,9110891,"-2,489.70 ","2,489.70 ",4591,Fire Precaution Maintenance,1014,Southwell,47.90 
Nottinghamshire Fire and Rescue Service,100437,Nottinghamshire Fire Safety Limited,Nottinghamshire Fire Safety Limited,Operational Responses,1,202412,22/03/2024,P6,9110891,"-2,489.70 ","2,489.70 ",4591,Fire Precaution Maintenance,1015,Collingham,53.35 
Nottinghamshire Fire and Rescue Service,100437,Nottinghamshire Fire Safety Limited,Nottinghamshire Fire Safety Limited,Operational Responses,1,202412,22/03/2024,P6,9110891,"-2,489.70 ","2,489.70 ",4591,Fire Precaution Maintenance,1016,Newark,104.50 
Nottinghamshire Fire and Rescue Service,100437,Nottinghamshire Fire Safety Limited,Nottinghamshire Fire Safety Limited,Operational Responses,1,202412,22/03/2024,P6,9110891,"-2,489.70 ","2,489.70 ",4591,Fire Precaution Maintenance,1017,Bingham,48.70 
Nottinghamshire Fire and Rescue Service,100437,Nottinghamshire Fire Safety Limited,Nottinghamshire Fire Safety Limited,Operational Responses,1,202412,22/03/2024,P6,9110891,"-2,489.70 ","2,489.70 ",4591,Fire Precaution Maintenance,1019,West Bridgford,90.55 
Nottinghamshire Fire and Rescue Service,100437,Nottinghamshire Fire Safety Limited,Nottinghamshire Fire Safety Limited,Operational Responses,1,202412,22/03/2024,P6,9110891,"-2,489.70 ","2,489.70 ",4591,Fire Precaution Maintenance,1020,Stockhill,105.30 
Nottinghamshire Fire and Rescue Service,100437,Nottinghamshire Fire Safety Limited,Nottinghamshire Fire Safety Limited,Operational Responses,1,202412,22/03/2024,P6,9110891,"-2,489.70 ","2,489.70 ",4591,Fire Precaution Maintenance,1023,Stapleford,58.00 
Nottinghamshire Fire and Rescue Service,100437,Nottinghamshire Fire Safety Limited,Nottinghamshire Fire Safety Limited,Operational Responses,1,202412,22/03/2024,P6,9110891,"-2,489.70 ","2,489.70 ",4591,Fire Precaution Maintenance,1024,Eastwood,47.90 
Nottinghamshire Fire and Rescue Service,100437,Nottinghamshire Fire Safety Limited,Nottinghamshire Fire Safety Limited,Operational Responses,1,202412,22/03/2024,P6,9110891,"-2,489.70 ","2,489.70 ",4591,Fire Precaution Maintenance,1026,Arnold,53.35 
Nottinghamshire Fire and Rescue Service,100437,Nottinghamshire Fire Safety Limited,Nottinghamshire Fire Safety Limited,Operational Responses,1,202412,22/03/2024,P6,9110891,"-2,489.70 ","2,489.70 ",4591,Fire Precaution Maintenance,1027,Carlton,118.45 
Nottinghamshire Fire and Rescue Service,100437,Nottinghamshire Fire Safety Limited,Nottinghamshire Fire Safety Limited,Operational Responses,1,202412,22/03/2024,P6,9110891,"-2,489.70 ","2,489.70 ",4591,Fire Precaution Maintenance,1028,East Leake,58.00 
Nottinghamshire Fire and Rescue Service,100437,Nottinghamshire Fire Safety Limited,Nottinghamshire Fire Safety Limited,Operational Responses,1,202412,22/03/2024,P6,9110891,"-2,489.70 ","2,489.70 ",4591,Fire Precaution Maintenance,1029,Highfields Station,235.50 
Nottinghamshire Fire and Rescue Service,100437,Nottinghamshire Fire Safety Limited,Nottinghamshire Fire Safety Limited,Management & Support Services,1,202412,22/03/2024,P6,9110891,"-2,489.70 ","2,489.70 ",4591,Fire Precaution Maintenance,1030,Service Development Centre,104.50 
Nottinghamshire Fire and Rescue Service,102107,Bits At Micks,Bits At Micks,Operational Responses,1,202412,29/02/2024,P6,9110543,"-3,036.00 ","3,036.00 ",4594,Training/ Teaching Equipment,1003,London Road,460.00 
Nottinghamshire Fire and Rescue Service,102107,Bits At Micks,Bits At Micks,Operational Responses,1,202412,29/02/2024,P6,9110543,"-3,036.00 ","3,036.00 ",4594,Training/ Teaching Equipment,1019,West Bridgford,460.00 
Nottinghamshire Fire and Rescue Service,102107,Bits At Micks,Bits At Micks,Operational Responses,1,202412,29/02/2024,P6,9110543,"-3,036.00 ","3,036.00 ",4594,Training/ Teaching Equipment,1020,Stockhill,230.00 
Nottinghamshire Fire and Rescue Service,102107,Bits At Micks,Bits At Micks,Operational Responses,1,202412,29/02/2024,P6,9110543,"-3,036.00 ","3,036.00 ",4594,Training/ Teaching Equipment,1029,Highfields Station,460.00 
Nottinghamshire Fire and Rescue Service,102107,Bits At Micks,Bits At Micks,Management and supoort services ,1,202412,29/02/2024,P6,9110543,"-3,036.00 ","3,036.00 ",4594,Training/ Teaching Equipment,2072,"Assurance, Risk and Operational Training",460.00 
Nottinghamshire Fire and Rescue Service,102107,Bits At Micks,Bits At Micks,Operational Responses,1,202412,29/02/2024,P6,9110543,"-3,036.00 ","3,036.00 ",4594,Training/ Teaching Equipment,2074,Operational Training,460.00 
Nottinghamshire Fire and Rescue Service,103932,Minster Joinery,Minster Joinery,Operational Responses,5,202412,01/03/2024,P6,9110574,-255.00 ,255.00 ,4594,Training/ Teaching Equipment,2074,Operational Training,255.00 
Nottinghamshire Fire and Rescue Service,104276,Motors in Motion Limited,Motors in Motion Limited,Operational Responses,5,202412,20/03/2024,P6,9110711,"-4,992.00 ","4,992.00 ",4594,Training/ Teaching Equipment,1002,Blidworth,320.00 
Nottinghamshire Fire and Rescue Service,104276,Motors in Motion Limited,Motors in Motion Limited,Operational Responses,5,202412,20/03/2024,P6,9110711,"-4,992.00 ","4,992.00 ",4594,Training/ Teaching Equipment,1005,Ashfield,960.00 
Nottinghamshire Fire and Rescue Service,104276,Motors in Motion Limited,Motors in Motion Limited,Operational Responses,5,202412,20/03/2024,P6,9110711,"-4,992.00 ","4,992.00 ",4594,Training/ Teaching Equipment,1006,Edwinstowe,640.00 
Nottinghamshire Fire and Rescue Service,104276,Motors in Motion Limited,Motors in Motion Limited,Operational Responses,5,202412,20/03/2024,P6,9110711,"-4,992.00 ","4,992.00 ",4594,Training/ Teaching Equipment,1007,Warsop,640.00 
Nottinghamshire Fire and Rescue Service,104276,Motors in Motion Limited,Motors in Motion Limited,Operational Responses,5,202412,20/03/2024,P6,9110711,"-4,992.00 ","4,992.00 ",4594,Training/ Teaching Equipment,1011,Misterton,320.00 
Nottinghamshire Fire and Rescue Service,104276,Motors in Motion Limited,Motors in Motion Limited,Operational Responses,5,202412,20/03/2024,P6,9110711,"-4,992.00 ","4,992.00 ",4594,Training/ Teaching Equipment,1016,Newark,640.00 
Nottinghamshire Fire and Rescue Service,104276,Motors in Motion Limited,Motors in Motion Limited,Operational Responses,5,202412,20/03/2024,P6,9110711,"-4,992.00 ","4,992.00 ",4594,Training/ Teaching Equipment,2074,Operational Training,640.00 
Nottinghamshire Fire and Rescue Service,100467,Kingsfield Computer Products Ltd,Kingsfield Computer Products Ltd,Management & Support Services,1,202412,20/03/2024,P6,9110727,-288.00 ,288.00 ,4594,Training/ Teaching Equipment,2059,Corporate Training,240.00 
Nottinghamshire Fire and Rescue Service,101796,Ruth Lee Limited,Ruth Lee Limited,Operational Responses,1,202412,21/03/2024,P6,9110732,-898.80 ,898.80 ,4594,Training/ Teaching Equipment,1029,Highfields Station,46.00 
Nottinghamshire Fire and Rescue Service,101796,Ruth Lee Limited,Ruth Lee Limited,Operational Responses,1,202412,21/03/2024,P6,9110732,-898.80 ,898.80 ,4594,Training/ Teaching Equipment,1029,Highfields Station,703.00 
Nottinghamshire Fire and Rescue Service,102073,B D Motor Spares,B D Motor Spares,Operational Responses,1,202412,24/03/2024,P6,9110837,"-6,840.00 ","6,840.00 ",4594,Training/ Teaching Equipment,2074,Operational Training,"1,500.00 "
Nottinghamshire Fire and Rescue Service,102073,B D Motor Spares,B D Motor Spares,Operational Responses,1,202412,24/03/2024,P6,9110837,"-6,840.00 ","6,840.00 ",4594,Training/ Teaching Equipment,2074,Operational Training,"4,200.00 "
Nottinghamshire Fire and Rescue Service,100467,Kingsfield Computer Products Ltd,Kingsfield Computer Products Ltd,Management & Support Services,1,202412,20/03/2024,P6,9110867,"-3,792.00 ","3,792.00 ",4594,Training/ Teaching Equipment,2059,Corporate Training,"3,160.00 "
Nottinghamshire Fire and Rescue Service,102107,Bits At Micks,Bits At Micks,Operational Responses,1,202412,31/03/2024,P6,9110999,"-1,380.00 ","1,380.00 ",4594,Training/ Teaching Equipment,1019,West Bridgford,230.00 
Nottinghamshire Fire and Rescue Service,102107,Bits At Micks,Bits At Micks,Operational Responses,1,202412,31/03/2024,P6,9110999,"-1,380.00 ","1,380.00 ",4594,Training/ Teaching Equipment,1020,Stockhill,230.00 
Nottinghamshire Fire and Rescue Service,102107,Bits At Micks,Bits At Micks,Operational Responses,1,202412,31/03/2024,P6,9110999,"-1,380.00 ","1,380.00 ",4594,Training/ Teaching Equipment,1024,Eastwood,230.00 
Nottinghamshire Fire and Rescue Service,102107,Bits At Micks,Bits At Micks,Operational Responses,1,202412,31/03/2024,P6,9110999,"-1,380.00 ","1,380.00 ",4594,Training/ Teaching Equipment,1027,Carlton,460.00 
Nottinghamshire Fire and Rescue Service,103849,Vision Support Services Ltd,Vision Support Services Ltd,Operational Responses,5,202412,21/08/2023,P6,9110532,493.92 ,-493.92 ,4600,Community Safety Delivery Consumables,1001,Mansfield,-411.60 
Nottinghamshire Fire and Rescue Service,101851,Complete Business Solutions Group Ltd,Complete Business Solutions Group Ltd,Management & Support Services,1,202412,06/09/2023,P6,9110656,-735.06 ,735.06 ,4611,Stock Adjustments,2086,Procurement,612.55 
Nottinghamshire Fire and Rescue Service,100334,Ashfield District Council (Council Offices),Ashfield District Council (Council Offices),Management & Support Services,4,202412,05/03/2024,P6,9110495,"-5,460.00 ","5,460.00 ",4621,Contribution to Partnership Working,2068,Prevention,"5,460.00 "
Nottinghamshire Fire and Rescue Service,101987,Mansfield District Council (Finance),Mansfield District Council (Finance),Management & Support Services,4,202412,22/02/2024,P6,9110566,-665.10 ,665.10 ,4621,Contribution to Partnership Working,2065,Pan Organisation,554.25 
Nottinghamshire Fire and Rescue Service,103176,South Yorkshire Fire & Rescue Authority,South Yorkshire Fire & Rescue Authority,Operational Responses,1,202412,27/03/2024,P6,9110874,"-4,803.65 ","4,803.65 ",4623,Cross Border Agreements - Payments,2013,Service Delivery,"4,803.65 "
Nottinghamshire Fire and Rescue Service,599999,Sundry Account Interview Expenses,Redacted Personal data ,Management & Support Services,2,202412,12/03/2024,P6,9110754,-750.00 ,750.00 ,4893,Insurance - Uninsured Losses/ Excess,2063,Risk Management & Insurance,625.00 
Nottinghamshire Fire and Rescue Service,101712,Browne Jacobson LLP,Browne Jacobson LLP,"Statutory Inspection, Certification & Enforcement",1,202412,26/03/2024,P6,9111036,"-6,157.44 ","6,157.44 ",7002,Legal Services,2021,Fire Protection,806.40 
Nottinghamshire Fire and Rescue Service,101712,Browne Jacobson LLP,Browne Jacobson LLP,"Statutory Inspection, Certification & Enforcement",1,202412,26/03/2024,P6,9111036,"-6,157.44 ","6,157.44 ",7002,Legal Services,2021,Fire Protection,"1,411.50 "
Nottinghamshire Fire and Rescue Service,101712,Browne Jacobson LLP,Browne Jacobson LLP,Management & Support Services,1,202412,26/03/2024,P6,9111036,"-6,157.44 ","6,157.44 ",7002,Legal Services,2084,Engineering,"2,421.10 "
Nottinghamshire Fire and Rescue Service,101712,Browne Jacobson LLP,Browne Jacobson LLP,Management & Support Services,1,202412,29/02/2024,P6,9111077,"-3,201.96 ","3,201.96 ",7002,Legal Services,2058,HR Support,"1,344.00 "
Nottinghamshire Fire and Rescue Service,100055,Nottingham City Council,Nottingham City Council,Management & Support Services,4,202412,18/03/2024,P6,9110840,"-51,551.82 ","51,551.82 ",7501,Committee Services,1087,Democratic Core,"42,959.85 "
Nottinghamshire Fire and Rescue Service,103112,KPMG LLP,KPMG LLP,Management & Support Services,1,202412,13/03/2024,P6,9110709,"-28,451.40 ","28,451.40 ",7502,External Audit Fees,2081,Finance,"23,709.50 "
Nottinghamshire Fire and Rescue Service,103981,Joseph Gleave and Son Limited -Joseph Gleave and Son (Holdings) Limited,Joseph Gleave and Son Limited -Joseph Gleave and Son (Holdings) Limited,Management & Support Services,5,202412,29/02/2024,P6,9110417,"-1,902.60 ","1,902.60 ",B314,Stock   ,9999,Stock ,"1,585.50 "
Nottinghamshire Fire and Rescue Service,100299,FireAngel Safety Technology Limited,FireAngel Safety Technology Limited,Management & Support Services,1,202412,27/02/2024,P6,9110423,-861.12 ,861.12 ,B314,Stock   ,9999,Stock ,717.60 
Nottinghamshire Fire and Rescue Service,102190,Dot Promotional Clothing,Dot Promotional Clothing,Management & Support Services,1,202412,27/02/2024,P6,9110426,-288.00 ,288.00 ,B314,Stock   ,9999,Stock ,240.00 
Nottinghamshire Fire and Rescue Service,101820,Metcalf Leenside Limited,Metcalf Leenside Limited,Management & Support Services,1,202412,29/02/2024,P6,9110438,-714.00 ,714.00 ,B314,Stock   ,9999,Stock ,595.00 
Nottinghamshire Fire and Rescue Service,104335,Palm Equipment Int Ltd,Palm Equipment Int Ltd,Management & Support Services,5,202412,27/02/2024,P6,9110447,"-24,428.24 ","24,428.24 ",B314,Stock   ,9999,Stock ,"20,356.87 "
Nottinghamshire Fire and Rescue Service,102376,Bristol Uniforms Limited,Bristol Uniforms Limited,Management & Support Services,1,202412,08/12/2023,P6,9110464,"-2,995.38 ","2,995.38 ",B314,Stock   ,9999,Stock ,"2,496.15 "
Nottinghamshire Fire and Rescue Service,103981,Joseph Gleave and Son Limited -Joseph Gleave and Son (Holdings) Limited,Joseph Gleave and Son Limited -Joseph Gleave and Son (Holdings) Limited,Management & Support Services,5,202412,19/01/2024,P6,9110465,-283.74 ,283.74 ,B314,Stock   ,9999,Stock ,236.45 
Nottinghamshire Fire and Rescue Service,100290,Lemaitre Ltd,Lemaitre Ltd,Management & Support Services,1,202412,21/02/2024,P6,9110467,-263.52 ,263.52 ,B314,Stock   ,9999,Stock ,174.60 
Nottinghamshire Fire and Rescue Service,102078,Thomas Kneale & Co Ltd,Thomas Kneale & Co Ltd,Management & Support Services,1,202412,19/01/2024,P6,9110475,"-1,020.60 ","1,020.60 ",B314,Stock   ,9999,Stock ,850.50 
Nottinghamshire Fire and Rescue Service,101820,Metcalf Leenside Limited,Metcalf Leenside Limited,Management & Support Services,1,202412,29/02/2024,P6,9110482,-818.74 ,818.74 ,B314,Stock   ,9999,Stock ,682.28 
Nottinghamshire Fire and Rescue Service,104081,Wel Medical Ltd,Wel Medical Ltd,Management & Support Services,5,202412,01/03/2024,P6,9110485,-390.90 ,390.90 ,B314,Stock   ,9999,Stock ,319.80 
Nottinghamshire Fire and Rescue Service,102376,Bristol Uniforms Limited,Bristol Uniforms Limited,Management & Support Services,1,202412,04/03/2024,P6,9110491,"-2,805.84 ","2,805.84 ",B314,Stock   ,9999,Stock ,"2,338.20 "
Nottinghamshire Fire and Rescue Service,102376,Bristol Uniforms Limited,Bristol Uniforms Limited,Management & Support Services,1,202412,01/03/2024,P6,9110492,"-1,005.91 ","1,005.91 ",B314,Stock   ,9999,Stock ,838.26 
Nottinghamshire Fire and Rescue Service,102376,Bristol Uniforms Limited,Bristol Uniforms Limited,Management & Support Services,1,202412,13/12/2023,P6,9110552,"-1,148.18 ","1,148.18 ",B314,Stock   ,9999,Stock ,956.82 
Nottinghamshire Fire and Rescue Service,103685,AB Sports Nutrition,AB Sports Nutrition,Management & Support Services,5,202412,23/02/2024,P6,9110554,-288.00 ,288.00 ,B314,Stock   ,9999,Stock ,240.00 
Nottinghamshire Fire and Rescue Service,102376,Bristol Uniforms Limited,Bristol Uniforms Limited,Management & Support Services,1,202412,29/02/2024,P6,9110556,-502.96 ,502.96 ,B314,Stock   ,9999,Stock ,419.13 
Nottinghamshire Fire and Rescue Service,102376,Bristol Uniforms Limited,Bristol Uniforms Limited,Management & Support Services,1,202412,29/02/2024,P6,9110557,"-1,005.91 ","1,005.91 ",B314,Stock   ,9999,Stock ,838.26 
Nottinghamshire Fire and Rescue Service,102376,Bristol Uniforms Limited,Bristol Uniforms Limited,Management & Support Services,1,202412,29/02/2024,P6,9110558,"-1,005.91 ","1,005.91 ",B314,Stock   ,9999,Stock ,838.26 
Nottinghamshire Fire and Rescue Service,102376,Bristol Uniforms Limited,Bristol Uniforms Limited,Management & Support Services,1,202412,29/02/2024,P6,9110559,-335.30 ,335.30 ,B314,Stock   ,9999,Stock ,279.42 
Nottinghamshire Fire and Rescue Service,102190,Dot Promotional Clothing,Dot Promotional Clothing,Management & Support Services,1,202412,04/03/2024,P6,9110562,-574.20 ,574.20 ,B314,Stock   ,9999,Stock ,478.50 
Nottinghamshire Fire and Rescue Service,102376,Bristol Uniforms Limited,Bristol Uniforms Limited,Management & Support Services,1,202412,04/03/2024,P6,9110563,-838.26 ,838.26 ,B314,Stock   ,9999,Stock ,698.55 
Nottinghamshire Fire and Rescue Service,102190,Dot Promotional Clothing,Dot Promotional Clothing,Management & Support Services,1,202412,05/10/2023,P6,9110571,-380.88 ,380.88 ,B314,Stock   ,9999,Stock ,317.40 
Nottinghamshire Fire and Rescue Service,103981,Joseph Gleave and Son Limited -Joseph Gleave and Son (Holdings) Limited,Joseph Gleave and Son Limited -Joseph Gleave and Son (Holdings) Limited,Management & Support Services,5,202412,08/03/2024,P6,9110576,-869.86 ,869.86 ,B314,Stock   ,9999,Stock ,724.88 
Nottinghamshire Fire and Rescue Service,101890,RFD Beaufort Limited,RFD Beaufort Limited,Management & Support Services,1,202412,08/03/2024,P6,9110581,-334.80 ,334.80 ,B314,Stock   ,9999,Stock ,260.00 
Nottinghamshire Fire and Rescue Service,100357,Eastern Shires Purchasing Organisation,Eastern Shires Purchasing Organisation,Management & Support Services,1,202412,12/03/2024,P6,9110625,"-1,213.86 ","1,213.86 ",B314,Stock   ,9999,Stock ,"1,011.55 "
Nottinghamshire Fire and Rescue Service,103406,Vimpex Limited,Vimpex Limited,Management & Support Services,5,202412,13/03/2024,P6,9110649,-402.00 ,402.00 ,B314,Stock   ,9999,Stock ,320.00 
Nottinghamshire Fire and Rescue Service,100299,FireAngel Safety Technology Limited,FireAngel Safety Technology Limited,Management & Support Services,1,202412,12/03/2024,P6,9110669,"-7,516.08 ","7,516.08 ",B314,Stock   ,9999,Stock ,"6,263.40 "
Nottinghamshire Fire and Rescue Service,103981,Joseph Gleave and Son Limited -Joseph Gleave and Son (Holdings) Limited,Joseph Gleave and Son Limited -Joseph Gleave and Son (Holdings) Limited,Management & Support Services,5,202412,15/03/2024,P6,9110673,-624.36 ,624.36 ,B314,Stock   ,9999,Stock ,520.30 
Nottinghamshire Fire and Rescue Service,103981,Joseph Gleave and Son Limited -Joseph Gleave and Son (Holdings) Limited,Joseph Gleave and Son Limited -Joseph Gleave and Son (Holdings) Limited,Management & Support Services,5,202412,15/03/2024,P6,9110676,"-1,623.36 ","1,623.36 ",B314,Stock   ,9999,Stock ,"1,352.80 "
Nottinghamshire Fire and Rescue Service,100357,Eastern Shires Purchasing Organisation,Eastern Shires Purchasing Organisation,Management & Support Services,1,202412,19/03/2024,P6,9110712,"-1,012.02 ","1,012.02 ",B314,Stock   ,9999,Stock ,843.35 
Nottinghamshire Fire and Rescue Service,100299,FireAngel Safety Technology Limited,FireAngel Safety Technology Limited,Management & Support Services,1,202412,18/03/2024,P6,9110718,"-16,676.40 ","16,676.40 ",B314,Stock   ,9999,Stock ,"13,897.00 "
Nottinghamshire Fire and Rescue Service,102376,Bristol Uniforms Limited,Bristol Uniforms Limited,Management & Support Services,1,202412,18/03/2024,P6,9110724,"-2,121.60 ","2,121.60 ",B314,Stock   ,9999,Stock ,"1,768.00 "
Nottinghamshire Fire and Rescue Service,102495,Rosenbauer UK Plc,Rosenbauer UK Plc,Management & Support Services,1,202412,14/03/2024,P6,9110728,-712.56 ,712.56 ,B314,Stock   ,9999,Stock ,584.00 
Nottinghamshire Fire and Rescue Service,100468,Specialised Canvas Group,Specialised Canvas Group,Management & Support Services,1,202412,21/03/2024,P6,9110742,-358.25 ,358.25 ,B314,Stock   ,9999,Stock ,282.93 
Nottinghamshire Fire and Rescue Service,103094,Draeger Safety UK Limited,Draeger Safety UK Limited,Management & Support Services,5,202412,20/03/2024,P6,9110745,-428.83 ,428.83 ,B314,Stock   ,9999,Stock ,357.36 
Nottinghamshire Fire and Rescue Service,102306,Northern Diver (International) Ltd,Northern Diver (International) Ltd,Management & Support Services,1,202412,18/03/2024,P6,9110800,-845.40 ,845.40 ,B314,Stock   ,9999,Stock ,685.50 
Nottinghamshire Fire and Rescue Service,102376,Bristol Uniforms Limited,Bristol Uniforms Limited,Management & Support Services,1,202412,19/03/2024,P6,9110802,"-3,831.35 ","3,831.35 ",B314,Stock   ,9999,Stock ,"3,192.79 "
Nottinghamshire Fire and Rescue Service,102864,William Sugden & sons Limited,William Sugden & sons Limited,Management & Support Services,5,202412,22/03/2024,P6,9110804,-585.60 ,585.60 ,B314,Stock   ,9999,Stock ,488.00 
Nottinghamshire Fire and Rescue Service,102190,Dot Promotional Clothing,Dot Promotional Clothing,Management & Support Services,1,202412,18/03/2024,P6,9110808,-848.42 ,848.42 ,B314,Stock   ,9999,Stock ,707.02 
Nottinghamshire Fire and Rescue Service,102864,William Sugden & sons Limited,William Sugden & sons Limited,Management & Support Services,5,202412,22/03/2024,P6,9110816,-292.80 ,292.80 ,B314,Stock   ,9999,Stock ,244.00 
Nottinghamshire Fire and Rescue Service,104020,MPL (Yorkshire) Ltd,MPL (Yorkshire) Ltd,Management & Support Services,5,202412,22/03/2024,P6,9110824,-306.00 ,306.00 ,B314,Stock   ,9999,Stock ,255.00 
Nottinghamshire Fire and Rescue Service,102376,Bristol Uniforms Limited,Bristol Uniforms Limited,Management & Support Services,1,202412,25/03/2024,P6,9110829,"-1,005.91 ","1,005.91 ",B314,Stock   ,9999,Stock ,838.26 
Nottinghamshire Fire and Rescue Service,102376,Bristol Uniforms Limited,Bristol Uniforms Limited,Management & Support Services,1,202412,25/03/2024,P6,9110830,"-1,140.96 ","1,140.96 ",B314,Stock   ,9999,Stock ,950.80 
Nottinghamshire Fire and Rescue Service,102376,Bristol Uniforms Limited,Bristol Uniforms Limited,Management & Support Services,1,202412,25/03/2024,P6,9110831,"-5,356.80 ","5,356.80 ",B314,Stock   ,9999,Stock ,"4,464.00 "
Nottinghamshire Fire and Rescue Service,102306,Northern Diver (International) Ltd,Northern Diver (International) Ltd,Management & Support Services,1,202412,24/11/2023,P6,9110852,"-1,007.40 ","1,007.40 ",B314,Stock   ,9999,Stock ,830.00 
Nottinghamshire Fire and Rescue Service,100723,J Hudson & Co (Whistles) Ltd,J Hudson & Co (Whistles) Ltd,Management & Support Services,1,202412,06/03/2024,P6,9110853,-613.18 ,613.18 ,B314,Stock   ,9999,Stock ,499.50 
Nottinghamshire Fire and Rescue Service,102190,Dot Promotional Clothing,Dot Promotional Clothing,Management & Support Services,1,202412,15/03/2024,P6,9110856,"-1,089.60 ","1,089.60 ",B314,Stock   ,9999,Stock ,908.00 
Nottinghamshire Fire and Rescue Service,102101,H-Squared,H-Squared,Management & Support Services,1,202412,26/03/2024,P6,9110872,-299.28 ,299.28 ,B314,Stock   ,9999,Stock ,249.40 
Nottinghamshire Fire and Rescue Service,100357,Eastern Shires Purchasing Organisation,Eastern Shires Purchasing Organisation,Management & Support Services,1,202412,26/03/2024,P6,9110883,-303.96 ,303.96 ,B314,Stock   ,9999,Stock ,253.30 
Nottinghamshire Fire and Rescue Service,101803,Premier Hose Technologies Ltd,Premier Hose Technologies Ltd,Management & Support Services,1,202412,29/02/2024,P6,9110451,"-22,191.12 ","22,191.12 ",C001,Vehicle Purchase,4000,Rescue Pump Replacement,"18,492.60 "
Nottinghamshire Fire and Rescue Service,104114,Volvo Car UK Ltd,Volvo Car UK Ltd,Management & Support Services,5,202412,26/02/2024,P6,9110496,"-54,922.25 ","54,922.25 ",C001,Vehicle Purchase,4001,Light Vehicle Replacement,"45,777.71 "
Nottinghamshire Fire and Rescue Service,101100,Angloco Limited,Angloco Limited,Management & Support Services,1,202412,12/03/2024,P6,9110598,"-2,205.00 ","2,205.00 ",C001,Vehicle Purchase,2084,Engineering,"1,837.50 "
Nottinghamshire Fire and Rescue Service,101100,Angloco Limited,Angloco Limited,Management & Support Services,1,202412,13/03/2024,P6,9110627,"-95,570.40 ","95,570.40 ",C001,Vehicle Purchase,4000,Rescue Pump Replacement,"79,642.00 "
Nottinghamshire Fire and Rescue Service,101100,Angloco Limited,Angloco Limited,Management & Support Services,1,202412,13/03/2024,P6,9110628,"-95,570.40 ","95,570.40 ",C001,Vehicle Purchase,4000,Rescue Pump Replacement,"79,642.00 "
Nottinghamshire Fire and Rescue Service,101100,Angloco Limited,Angloco Limited,Management & Support Services,1,202412,13/03/2024,P6,9110695,"-95,570.40 ","95,570.40 ",C001,Vehicle Purchase,4000,Rescue Pump Replacement,"79,642.00 "
Nottinghamshire Fire and Rescue Service,101100,Angloco Limited,Angloco Limited,Management & Support Services,1,202412,13/03/2024,P6,9110696,"-95,570.40 ","95,570.40 ",C001,Vehicle Purchase,4000,Rescue Pump Replacement,"79,642.00 "
Nottinghamshire Fire and Rescue Service,101100,Angloco Limited,Angloco Limited,Management & Support Services,1,202412,13/03/2024,P6,9110697,"-95,570.40 ","95,570.40 ",C001,Vehicle Purchase,4000,Rescue Pump Replacement,"79,642.00 "
Nottinghamshire Fire and Rescue Service,101100,Angloco Limited,Angloco Limited,Management & Support Services,1,202412,13/03/2024,P6,9110698,"-95,570.40 ","95,570.40 ",C001,Vehicle Purchase,4000,Rescue Pump Replacement,"79,642.00 "
Nottinghamshire Fire and Rescue Service,104320,GWilkinson Construction Ltd,GWilkinson Construction Ltd,Management & Support Services,5,202412,26/02/2024,P6,9110422,"-5,596.38 ","5,596.38 ",C101,Building Works,4100,Fire Station Improvement & Refurbishments,"4,663.65 "
Nottinghamshire Fire and Rescue Service,104320,GWilkinson Construction Ltd,GWilkinson Construction Ltd,Management & Support Services,5,202412,26/02/2024,P6,9110442,"-3,469.33 ","3,469.33 ",C101,Building Works,4100,Fire Station Improvement & Refurbishments,"2,891.11 "
Nottinghamshire Fire and Rescue Service,104320,GWilkinson Construction Ltd,GWilkinson Construction Ltd,Management & Support Services,5,202412,26/02/2024,P6,9110443,"-5,531.98 ","5,531.98 ",C101,Building Works,4100,Fire Station Improvement & Refurbishments,"4,609.98 "
Nottinghamshire Fire and Rescue Service,104320,GWilkinson Construction Ltd,GWilkinson Construction Ltd,Management & Support Services,5,202412,26/02/2024,P6,9110444,"-11,510.65 ","11,510.65 ",C101,Building Works,4100,Fire Station Improvement & Refurbishments,"9,592.21 "
Nottinghamshire Fire and Rescue Service,104320,GWilkinson Construction Ltd,GWilkinson Construction Ltd,Management & Support Services,5,202412,26/02/2024,P6,9110533,"-27,875.57 ","27,875.57 ",C101,Building Works,4100,Fire Station Improvement & Refurbishments,"23,229.64 "
Nottinghamshire Fire and Rescue Service,104317,Edward Pryor & Son Ltd,Edward Pryor & Son Ltd,Management & Support Services,5,202412,27/02/2024,P6,9110550,"-3,600.00 ","3,600.00 ",C101,Building Works,4101,Non Operational Buildings Improvements & Refurbishments,"3,000.00 "
Nottinghamshire Fire and Rescue Service,104336,Hellermann Tyton limited,Hellermann Tyton limited,Management & Support Services,5,202412,07/03/2024,P6,9110593,"-1,202.02 ","1,202.02 ",C101,Building Works,4101,Non Operational Buildings Improvements & Refurbishments,"1,001.68 "
Nottinghamshire Fire and Rescue Service,104320,GWilkinson Construction Ltd,GWilkinson Construction Ltd,Management & Support Services,5,202412,15/03/2024,P6,9110665,"-13,409.98 ","13,409.98 ",C101,Building Works,4100,Fire Station Improvement & Refurbishments,"11,174.98 "
Nottinghamshire Fire and Rescue Service,104320,GWilkinson Construction Ltd,GWilkinson Construction Ltd,Management & Support Services,5,202412,15/03/2024,P6,9110666,"-11,398.43 ","11,398.43 ",C101,Building Works,4100,Fire Station Improvement & Refurbishments,"9,498.69 "
Nottinghamshire Fire and Rescue Service,104320,GWilkinson Construction Ltd,GWilkinson Construction Ltd,Management & Support Services,5,202412,15/03/2024,P6,9110668,"-14,449.01 ","14,449.01 ",C101,Building Works,4100,Fire Station Improvement & Refurbishments,"12,040.84 "
Nottinghamshire Fire and Rescue Service,104325,Rescue Intellitech Uk Ltd,Rescue Intellitech Uk Ltd,Management & Support Services,5,202412,26/03/2024,P6,9110841,"-50,271.00 ","50,271.00 ",C101,Building Works,4101,Non Operational Buildings Improvements & Refurbishments,"1,166.00 "
Nottinghamshire Fire and Rescue Service,104325,Rescue Intellitech Uk Ltd,Rescue Intellitech Uk Ltd,Management & Support Services,5,202412,26/03/2024,P6,9110841,"-50,271.00 ","50,271.00 ",C101,Building Works,4101,Non Operational Buildings Improvements & Refurbishments,"49,105.00 "
Nottinghamshire Fire and Rescue Service,104320,GWilkinson Construction Ltd,GWilkinson Construction Ltd,Management & Support Services,5,202412,15/03/2024,P6,9110861,"-1,740.52 ","1,740.52 ",C101,Building Works,4100,Fire Station Improvement & Refurbishments,"1,450.43 "
Nottinghamshire Fire and Rescue Service,104320,GWilkinson Construction Ltd,GWilkinson Construction Ltd,Management & Support Services,5,202412,15/03/2024,P6,9110869,"-48,130.46 ","48,130.46 ",C101,Building Works,4100,Fire Station Improvement & Refurbishments,"40,108.72 "
Nottinghamshire Fire and Rescue Service,104320,GWilkinson Construction Ltd,GWilkinson Construction Ltd,Management & Support Services,5,202412,27/03/2024,P6,9110870,"-2,189.39 ","2,189.39 ",C101,Building Works,4100,Fire Station Improvement & Refurbishments,"1,824.49 "
Nottinghamshire Fire and Rescue Service,104320,GWilkinson Construction Ltd,GWilkinson Construction Ltd,Management & Support Services,5,202412,27/03/2024,P6,9110871,"-7,401.65 ","7,401.65 ",C101,Building Works,4100,Fire Station Improvement & Refurbishments,"6,168.03 "
Nottinghamshire Fire and Rescue Service,104320,GWilkinson Construction Ltd,GWilkinson Construction Ltd,Management & Support Services,5,202412,27/03/2024,P6,9110878,"-9,697.54 ","9,697.54 ",C101,Building Works,4100,Fire Station Improvement & Refurbishments,"8,081.28 "
Nottinghamshire Fire and Rescue Service,104320,GWilkinson Construction Ltd,GWilkinson Construction Ltd,Management & Support Services,5,202412,26/03/2024,P6,9111000,"-7,900.15 ","7,900.15 ",C101,Building Works,4100,Fire Station Improvement & Refurbishments,"6,583.46 "
Nottinghamshire Fire and Rescue Service,104320,GWilkinson Construction Ltd,GWilkinson Construction Ltd,Management & Support Services,5,202412,26/03/2024,P6,9111009,"-20,833.91 ","20,833.91 ",C101,Building Works,4100,Fire Station Improvement & Refurbishments,"17,361.59 "
Nottinghamshire Fire and Rescue Service,104284,Sarah Wilkinson Design,Sarah Wilkinson Design,Management & Support Services,10,202412,26/03/2024,P6,9110846,-420.00 ,420.00 ,C154,Professional Fees - Design,2051,Corporate Communications,420.00 
Nottinghamshire Fire and Rescue Service,101712,Browne Jacobson LLP,Browne Jacobson LLP,Management & Support Services,1,202412,26/03/2024,P6,9111036,"-6,157.44 ","6,157.44 ",C157,Professional Fees - Legal,4102,Strategic New Build Projects,492.20 
Nottinghamshire Fire and Rescue Service,101712,Browne Jacobson LLP,Browne Jacobson LLP,Management & Support Services,1,202412,29/02/2024,P6,9111077,"-3,201.96 ","3,201.96 ",C157,Professional Fees - Legal,4102,Strategic New Build Projects,6.00 
Nottinghamshire Fire and Rescue Service,101712,Browne Jacobson LLP,Browne Jacobson LLP,Management & Support Services,1,202412,29/02/2024,P6,9111077,"-3,201.96 ","3,201.96 ",C157,Professional Fees - Legal,4102,Strategic New Build Projects,"1,318.30 "
Nottinghamshire Fire and Rescue Service,100467,Kingsfield Computer Products Ltd,Kingsfield Computer Products Ltd,Management & Support Services,1,202412,12/03/2024,P6,9110599,"-4,788.00 ","4,788.00 ",C200,Hardware,4300,ICT Capital Programme,"3,990.00 "
Nottinghamshire Fire and Rescue Service,100467,Kingsfield Computer Products Ltd,Kingsfield Computer Products Ltd,Management & Support Services,1,202412,12/03/2024,P6,9110600,"-9,726.00 ","9,726.00 ",C200,Hardware,4300,ICT Capital Programme,"8,105.00 "
Nottinghamshire Fire and Rescue Service,100467,Kingsfield Computer Products Ltd,Kingsfield Computer Products Ltd,Management & Support Services,1,202412,07/03/2024,P6,9110601,"-18,882.00 ","18,882.00 ",C200,Hardware,4300,ICT Capital Programme,"15,735.00 "
Nottinghamshire Fire and Rescue Service,100467,Kingsfield Computer Products Ltd,Kingsfield Computer Products Ltd,Management & Support Services,1,202412,11/03/2024,P6,9110611,"-1,530.00 ","1,530.00 ",C200,Hardware,4300,ICT Capital Programme,"1,275.00 "
Nottinghamshire Fire and Rescue Service,100467,Kingsfield Computer Products Ltd,Kingsfield Computer Products Ltd,Management & Support Services,1,202412,13/03/2024,P6,9110634,"-5,987.40 ","5,987.40 ",C200,Hardware,4300,ICT Capital Programme,"4,989.50 "
Nottinghamshire Fire and Rescue Service,100467,Kingsfield Computer Products Ltd,Kingsfield Computer Products Ltd,Management & Support Services,1,202412,13/03/2024,P6,9110635,-324.00 ,324.00 ,C200,Hardware,4300,ICT Capital Programme,270.00 
Nottinghamshire Fire and Rescue Service,100467,Kingsfield Computer Products Ltd,Kingsfield Computer Products Ltd,Management & Support Services,1,202412,20/03/2024,P6,9110708,"-1,163.22 ","1,163.22 ",C200,Hardware,4300,ICT Capital Programme,969.35 
Nottinghamshire Fire and Rescue Service,100467,Kingsfield Computer Products Ltd,Kingsfield Computer Products Ltd,Management & Support Services,1,202412,20/03/2024,P6,9110715,"-14,672.40 ","14,672.40 ",C200,Hardware,4300,ICT Capital Programme,"12,227.00 "
Nottinghamshire Fire and Rescue Service,103092,Daisy Corporate Services Trading Limited,Daisy Corporate Services Trading Limited,Management & Support Services,1,202412,12/03/2024,P6,9110726,"-167,751.00 ","167,751.00 ",C200,Hardware,4300,ICT Capital Programme,"139,792.50 "
Nottinghamshire Fire and Rescue Service,100467,Kingsfield Computer Products Ltd,Kingsfield Computer Products Ltd,Management & Support Services,1,202412,21/03/2024,P6,9110731,-405.60 ,405.60 ,C200,Hardware,4300,ICT Capital Programme,338.00 
Nottinghamshire Fire and Rescue Service,100467,Kingsfield Computer Products Ltd,Kingsfield Computer Products Ltd,Management & Support Services,1,202412,26/03/2024,P6,9110787,"-6,076.80 ","6,076.80 ",C200,Hardware,4300,ICT Capital Programme,"5,064.00 "
Nottinghamshire Fire and Rescue Service,102261,Airwave Solutions Ltd,Airwave Solutions Ltd,Management & Support Services,1,202412,08/03/2024,P6,9110791,"-2,177.74 ","2,177.74 ",C200,Hardware,4300,ICT Capital Programme,"1,023.30 "
Nottinghamshire Fire and Rescue Service,103483,Risual Limited,Risual Limited,Management & Support Services,5,202412,29/02/2024,P6,9110794,"-1,142.89 ","1,142.89 ",C200,Hardware,4300,ICT Capital Programme,952.41 
Nottinghamshire Fire and Rescue Service,103092,Daisy Corporate Services Trading Limited,Daisy Corporate Services Trading Limited,Management & Support Services,1,202412,31/01/2024,P6,9110859,"-12,319.20 ","12,319.20 ",C200,Hardware,4300,ICT Capital Programme,"10,266.00 "
Nottinghamshire Fire and Rescue Service,103092,Daisy Corporate Services Trading Limited,Daisy Corporate Services Trading Limited,Management & Support Services,1,202412,27/03/2024,P6,9110889,"-2,364.00 ","2,364.00 ",C200,Hardware,4300,ICT Capital Programme,"1,970.00 "
Nottinghamshire Fire and Rescue Service,104227,WCL (UK) Ltd trading as Everything ICT,WCL (UK) Ltd trading as Everything ICT,Management & Support Services,5,202412,27/03/2024,P6,9110996,"-32,914.25 ","32,914.25 ",C200,Hardware,4300,ICT Capital Programme,"27,428.54 "
Nottinghamshire Fire and Rescue Service,103483,Risual Limited,Risual Limited,Management & Support Services,5,202412,29/02/2024,P6,9110427,"-1,140.00 ","1,140.00 ",C202,Consultancy and Services,4300,ICT Capital Programme,950.00 
Nottinghamshire Fire and Rescue Service,103582,Softcat Limited,Softcat Limited,Management & Support Services,5,202412,13/03/2024,P6,9110793,"-1,320.00 ","1,320.00 ",C202,Consultancy and Services,4300,ICT Capital Programme,"1,100.00 "
Nottinghamshire Fire and Rescue Service,103483,Risual Limited,Risual Limited,Management & Support Services,5,202412,22/03/2024,P6,9110847,"-1,140.00 ","1,140.00 ",C202,Consultancy and Services,4300,ICT Capital Programme,950.00 
Nottinghamshire Fire and Rescue Service,102306,Northern Diver (International) Ltd,Northern Diver (International) Ltd,Management & Support Services,1,202412,04/01/2024,P6,9110565,"-1,419.60 ","1,419.60 ",C301,Operational Equipment - Purchase,4200,Equipment Capital Programme,19.00 
Nottinghamshire Fire and Rescue Service,102306,Northern Diver (International) Ltd,Northern Diver (International) Ltd,Management & Support Services,1,202412,04/01/2024,P6,9110565,"-1,419.60 ","1,419.60 ",C301,Operational Equipment - Purchase,4200,Equipment Capital Programme,"1,164.00 "
Nottinghamshire Fire and Rescue Service,102306,Northern Diver (International) Ltd,Northern Diver (International) Ltd,Management & Support Services,1,202412,08/03/2024,P6,9110752,"-7,329.60 ","7,329.60 ",C301,Operational Equipment - Purchase,4200,Equipment Capital Programme,90.00 
Nottinghamshire Fire and Rescue Service,102306,Northern Diver (International) Ltd,Northern Diver (International) Ltd,Management & Support Services,1,202412,08/03/2024,P6,9110752,"-7,329.60 ","7,329.60 ",C301,Operational Equipment - Purchase,4200,Equipment Capital Programme,"6,018.00 "
Nottinghamshire Fire and Rescue Service,102306,Northern Diver (International) Ltd,Northern Diver (International) Ltd,Management & Support Services,1,202412,05/04/2024,P6,9111005,-720.60 ,720.60 ,C301,Operational Equipment - Purchase,4200,Equipment Capital Programme,10.50 
Nottinghamshire Fire and Rescue Service,102306,Northern Diver (International) Ltd,Northern Diver (International) Ltd,Management & Support Services,1,202412,05/04/2024,P6,9111005,-720.60 ,720.60 ,C301,Operational Equipment - Purchase,4200,Equipment Capital Programme,590.00 
,***Note:,,,,,,,,,,,,,,,
,"***The report shows the payment in its original form. This means disaggregating many invoices into individual component payments many of which will be less than £250 in their own right. This explains why you will see many of the amounts showing less than £250. They were, however, paid as part of an invoice of £250 or more.

**** The Invoice date is the date issued on the invoice. This date may fall out of the date range for the report. In most cases this is due to the invoice being received  late.",,,,,,,,,,,,,,,